Workbook

Sheet Cover Page
D1: Add company logo
N2: Version 23.4a (for incinerators) - 15/11/2023
N4: Note that there is another version of this template available for co-incinerators
B8: Add photo
N13: Notes:
N14: This template may require adjustments by individual operators to meet specific reporting requirements as defined in the site Permit(s)
B29: Annual Performance Report 2023
B31: Permit EPR/BR4551IC
B33: Kent Enviropower Limited
B35: Allington Incinerator, Allington Quarry
B37: Kent Enviropower Limited
B39: Year: | C39: 2023
B41: Address: | C41: Laverstoke Road, Allington, Maidstone, Kent. ME16 0LE
B43: Tel: | C43: 0844 736 9990
B45: Email:
B47: Prepared by: | C47: Trevor Ellis | F47: Position: | G47: Environment Manager
B49: Approved by: | C49: Tony Stanbridge | F49: Position: | G49: General Manager
B51: Version: | C51: 1
B53: Issue Date: | C53: 31st January 2024

Sheet Contents
A1: =+'Cover Page'!$B$29 -> Annual Performance Report 2023 | E1: =+'Cover Page'!$B$33 -> Kent Enviropower Limited
A3: Contents | K3: Notes:
A4: Section | B4: Subject | H4: Page | K4: Section references and Page nos. to be inserted
B5: Facility Information | K5: Sections and Subjects may require adjustment by individual operators to meet specific reporting requirements as defined in the sites Permit(s)
B6: Operational Data
B7: Operational Summary
B8: Performance Form 1
B9: Energy Form 1
B10: Permit Compliance
B11: Improvements
B12: Public Liasion
B13: Carbon dioxide and nitrous oxide emissions
B14: Residue Quality
B15: Emissions to Water
B16: Emissions to Air (periodically monitored)
B17: Emissions to Air (continuously monitored)
B18: Hydrogen Chloride emissions
B19: Sulphur Dioxdie emsissions
B20: Oxides of Notrigen emissions
B21: Total Organic Carbon emissions
B22: Particulate Matter emissions
B23: Carbon Monoxide emissions
B24: Ammonia emissions
A27: Version Control
A28: Section | B28: Information | H28: Date
A35: Distribution
A36: Copy | B36: Name, Role | H36: No.
A45: This report is required under the Industrial Emissions Directive’s Article 55(2) requirements on reporting and public information on waste incineration plants and co-incineration plants, which require the operator to produce an annual report on the functioning and monitoring of the plant and make it available to the public.

Sheet Facility Info
A1: =+'Cover Page'!$B$29 -> Annual Performance Report 2023 | E1: =+'Cover Page'!$B$33 -> Kent Enviropower Limited
A3: Plant Description and Design | K3: Notes:
A5: Installation Description The Installation receives non hazardous municipal and industrial waste, recovers recyclable elements for reuse and eliminates the combustible element of the residue by burning in a fluidised bed furnace. Energy is recovered from the process and converted to electricity in place of non-renewable fossil fuels. The combustion gases are cleaned to meet the standards required by the Directive before discharge from a tall chimney. Ashes and other solid residues are removed from the installation. The Installation covers the site and the entire EfW plant including all EfW lines, waste reception, storage, on-site pre-treatment facilities, water, fuel and air supply systems, boiler, facilities for the treatment of exhaust gases, on-site facilities for treatment or storage of residues and waste water, stack, devices and systems for controlling combustion operations, recording and monitoring conditions. The Installation has a design throughput of approx 580,000 tonnes per annum with an EfW capacity approx 560,000 tonnes per annum. The transfer loading station receives food waste and clean source separated recyclables which it reloads for onward transport and recovery. There is a single waste reception followed by three independent waste treatment lines each complete with a heat recovery boiler, acid gas abatement, bag filter and a separate flue in the chimney. The heat produced from the combustion of the waste is used to generate steam in the boilers and the steam is then combined and passed to a steam turbine which generates approx 34.5 MW of electrical energy for export to the National Grid. | K5: Include summary of plant design, design capacity, no. of combustion lines, electrical and heat capacity and any other general information that describes the facility, its location and purpose
A20: Summary of Operational Processes and Procedures
A22: Raw Materials Waste is delivered to the plant in road vehicles which are weighed before proceeding to the tipping hall. This is a fully enclosed building, maintained under slight negative pressure to ensure that no odours, dust or litter can escape the building. The vehicles carry either unsorted mixed municipal waste, sorted waste for recycling or mixed recyclable waste and non recyclable waste and each tip into the appropriate section of the tipping hall. The unsorted mixed waste (black bag) is transferred by crane grab to a waste shredding line, it then moves forward through a metals extraction section where ferrous metals are removed for recycling before moving to the prepared fuel bunker. The facility also operates as a waste transfer site. It receives clean mixed recyclates and food wastes collected in the community and loads them in bulk onto their designated transport vehicles for transport off site for recovery. A crane grab in the prepared fuel bunker both mixes the waste and charges the hoppers of the three incineration lines. Hydrated lime for the flue gas cleaning process is delivered by bulk tanker and offloaded pneumatically into three 125m3 silos vented through a reverse pulse jet filter. Activated carbon for the flue gas cleaning process is stored in dedicated silos that are pneumatically filled from delivery trucks. There are three silos, one for each line, each equipped with filters to prevent dust emissions during filling. Urea, dissolved in water is stored in a fully bunded tank and is injected into the furnaces as necessary to control NOx emissions. Caustic soda for water treatment resin regeneration is delivered by bulk tanker and offloaded into a 5.5 m3 tank with scrubber, inside the demineralisation area. Hydrochloric acid for water treatment resin regeneration is delivered by bulk tanker and offloaded into a 5.5 m3 tank vented through the caustic soda scrubber in a bund outside the demineralisation area. Various other water treatment chemicals are delivered in appropriate containers and stored in bunded areas. Gas oil for the combustion chamber burners and on-site vehicles is stored in a fully bunded 150 m3 tank. Sand for the fluidised bed furnaces is stored in 3 silos each of 55 cubic meters capacity. Various maintenance materials (oils, greases, insulants, antifreezes, welding and fire fighting gases etc.) are stored in the appropriate manner. Combustion Process:- The technology employed for incineration is the ROWITEC unit which uses a fluidised bed process. The design has an inclined air distributor plate with a number of separate air supply chambers providing differential air flows across the bed, causing a revolving action. This technique promotes rapid and uniform mixing of the sand and bottom ash and ensures that heavy inert and non-combustible material migrates to the sides of the bed where they can easily be removed. An angled furnace wall above the fluidised bed zone restrains bed expansion under high fluidising air flows and so minimises particulate carry over. The elliptical patterns of air flow converge in the centre of the combustion area ensuring effective vertical and lateral turbulent mixing and high combustion efficiency and uniformity. The waste is burned on a bed consisting of sand and ash that is held in suspension by an upward flow of combustion air that circulates the combustion mixture up to the throat of the furnace. The furnace operating design is based on a thermal capacity of 53.8MW at full load and this can be achieved over the typical range of waste calorific values expected with municipal waste. The combustion air system provides the furnace with the total air requirements for fluidisation and combustion. Primary air is supplied to the bottom of the combustion chamber and fluidises the bed. This air is extracted from the waste reception and storage buildings and destroys all odours in the combustion chamber. Each furnace is equipped with two fuel oil burners for use at start-up to heat the furnace and also during extreme reductions in waste fuel calorific value when the temperature of the furnace would otherwise fall below 850 degrees Centigrade. Combustion control of the furnace will be achieved through a combination of furnace bed and freeboard temperature control, primary air flow control, oxygen control within the flue gas and furnace load. Recirculated flue gas is fed to the furnace bed as a cooling medium to control the furnace bed temperature and also to assist the control of NOx by influencing the combustion temperature conditions within the furnace. The furnace bed is managed to remove non-combustible material (bottom ash) from the bed and maintain the sand level within the optimum operating range. Bottom ashes produced in the furnace together with sand migrate down the slope of the furnace to the discharge section located at each side of the bed. The bottom ash and sand are both withdrawn from the discharge sections of the bed by two water-cooled discharge screw conveyors. Material passing out of the screw conveyors is discharged to a vibrating screen. Undersize material is returned to the sand hopper for re-use within the furnace while the oversized material is sent off site for recovery or re-use or landfill. | K22: Include summary of key processes and procedures such as (but not limited to); waste reception, control rooms, grate, bed and boiler, energy & heat generation, cooling systems, residue management, emission controls, health and safety systems, maintenance
A55: Energy Recovery Hot gases from the furnace pass through to a boiler designed to generate steam. The boiler comprises two fully water cooled radiation chambers, a single pass horizontal plain tube convective heating surface, incorporating a three stage convective superheater unit and a plain tube economiser section. The economiser is designed for high velocity gas flow to minimise the reformation of dioxins in the critical de Novo synthesis range. Steam is generated at 65 bar and a final temperature of 420 degrees Centigrade. The high pressure steam from all three boilers feeds into a common header which in turn will feed a condensing steam turbine that will generate electricity. Steam exiting the turbine will be condensed in an air cooled condenser and the condensate returned to the boilers. Gas Cleaning The plant is designed to meet the requirements of the Industrial Emissions Directive as a minimum for releases to air by a combination of main process design and operation and abatement equipment. Flue gases pass from the boiler to the gas cleaning equipment. The gas passes to an electrostatic precipitator (ESP) for the separation of ash carried over from the furnace with the flue gas. Material collected in the ESP will be discharged by means of rotary valves and chain conveyors and then pneumatically fed to the ash silos or re-injected into the flue gas cleaning system. Gases leaving the ESP enter the gas cleaning system. This comprises a circo clean reactor and bag filter system. Gases entering the circo clean reactor will be at a temperature of 190 to 230 degrees C and will come into contact with a mixture of water, hydrated lime and activated carbon that have been injected into the reactor. The reactor is designed to reduce or remove acidic pollutants such as HCl, SO2 and HF by the use of the hydrated lime and dioxins and furans, PCBs, PAHs, mercury vapour and heavy metal salts such as mercury chloride by the use of the activated carbon. The injected water enhances the reactions and cools the gas. The control system of the circo clean reactor optimises the use of reactants by balancing the feed rate with the concentration of the pollutants entering the circo clean reactor. The final stage of the gas cleaning system is the bag filter unit which separates the particulate material from the flue gas. The baghouse filter consists of compartments each of which contains a number of tubular filter bags. A thick porous layer of particulate builds on the bag surfaces to form a filter cake which efficiently removes ultra fine particles from the gas stream and the excess lime continues to react with the acid gases. Bag house residue is discharged from the compartments via the integrated buffer storage by a closed pneumatic conveying system into the reaction product silos. Silos are equipped with a filter, hopper heating and fluidisation system to assist discharge. The residue is then discharged directly into road vehicles under dust free conditions for transport off site to a licensed facility. Nitrogen oxides (NOx) abatement is achieved by the use of both flue gas recirculation (FGR) and selective non-catalytic reduction (SNCR). The SNCR is based on the injection of urea into the furnace chambers before the boilers and before the lime and carbon injection and before the gas passes to bag filters. The cleaned gas then discharges to atmosphere via three 80-metre flues in a common stack at an efflux velocity in excess of 15 ms-1 at maximum throughput. Ancillary Operations Demineralised water is required to compensate for boiler blowdown losses. A package demineralisation plant provides this water. The ion exchange resins are regenerated using sodium hydroxide and hydrochloric acid and the regeneration effluent is routed through a neutralisation tank to the collection pit for reuse where possible. Ash Handling Bottom ash, the combined boiler and ESP ash and the flue gas treatment residue (FGTR) from the bag filter system, are each sent for separate disposal off site by licensed contractors subject to waste licensing legislation. FGTR is not mixed with any other ash at any time. The bottom ash is likely to be subject to ferrous and non ferrous metals extraction by the contractors before disposal or reuse. All operations will be subject to waste licensing legislation and be tracked by the Environment Agency. At least quarterly sampling of the bottom ash will be carried out to ensure effective burn out is being achieved by testing for the “loss on ignition” of the residual ash. All other solid waste residues arising from the operation of the process will be removed from site, in enclosed containers, for disposal by suitable contractors. Liquid Effluent and Site Drainage Uncontaminated surface water from the roads and parking area that is not reused within the process will be discharged to sewer.
A82: Emissions Monitoring Emissions from the stack are continuously monitored for: particulate, carbon monoxide (CO), ammonia (NH3), sulphur dioxide (SO2), hydrogen chloride (HCl), oxygen (O2), nitrogen oxides (NOx) Nitrous Oxide (N2O) Carbon Dioxide (CO2) and volatile organic compounds (VOC). In addition periodic sampling and measurement will be carried out for metals cadmium (Cd), thallium (Tl), mercury (Hg), antimony (Sb), arsenic (As), lead (Pb), chromium (Cr), cobalt (Co), copper (Cu), manganese (Mn), nickel (Ni), vanadium (V), dioxins and furans, dioxin like PCBs and hydrogen fluoride (HF). Periodic measurements are carried out bi annually and in some instances annually.

Sheet Operational Data
A1: =+'Cover Page'!$B$29 -> Annual Performance Report 2023 | E1: =+'Cover Page'!$B$33 -> Kent Enviropower Limited
A3: Operational Data
A4: Plant Size | B4: 560000 | D4: tonnes pa | E4: 41670 | F4: MWth | G4: 376680 | H4: MWe | J4: Notes:
A5: No. of combustion lines | B5: 3 | D5: No. of Turbines: | F5: 1 | J5: * - RDF to include SRF
J6: ** - Combusted tonnage = tonnes delivered in period + (tonnes in bunker at start of period – tonnes in bunker at end of period), or equivalent calculation depending on plant type
A7: Waste types received | B7: Unit | C7: Q1 | D7: Q2 | E7: Q3 | F7: Q4 | G7: Year Total | H7: %
A8: Household / Local Authority | B8: tonnes | C8: 82934.74 | D8: 85185.77 | E8: 81948.5 | F8: 79684.48 | G8: =SUM(C8:F8) -> 329753.49 | H8: =IF(G8>0,G8/$G$18,"-") -> 0.6447788512
A9: Commercial & Industrial | C9: 33234.76 | D9: 47020.36 | E9: 39970.54 | F9: 35558.42 | G9: =SUM(C9:F9) -> 155784.08 | H9: 0.3046102109 | J9: *** - CHP plants only
A10: Hazardous | G10: 0 | H10: - | J10: **** Availability Definition: 'the availability of a line is to be calculated by the number of hours the line reported Continuously Monitored emission levels to the Regulator through the calendar year divided by the total number of hours in that year. The overall plant availability is calculated as the Mean of all lines in the plant. For clarity this includes periods of abnormal operation.' Rationale: The primary function of an Energy from Waste facility is the disposal of waste. It follows therefore that the availability of a plant is determined by the period of time a facility spends undertaking this activity.
A11: Clinical | G11: 0 | H11: -
A12: Waste wood (biomass) | G12: 0 | H12: -
A13: Refuse Derived Fuel * - H'hold/LA | G13: =SUM(C13:F13) -> 0 | H13: -
A14: Refuse Derived Fuel * - C&I | G14: 0 | H14: -
A15: Food waste | C15: 1061.42 | D15: 992.28 | E15: 988.4 | F15: 1054.96 | G15: 4097.06 | H15: 0.008011128677
A16: Recyclates waste | C16: 5543.76 | D16: 4853.86 | E16: 4868.7 | F16: 4143.48 | G16: =SUM(C16:F16) -> 19409.8 | H16: 0.03795267958
A17: Card/Paper | C17: 655.28 | D17: 554.84 | E17: 560.76 | F17: 605.76 | G17: 2376.64 | H17: 0.004647129615
A18: Total waste received | C18: =SUM(C8:C17) -> 123429.96 | D18: =SUM(D8:D17) -> 138607.11 | E18: =SUM(E8:E17) -> 128336.9 | F18: =SUM(F8:F17) -> 121047.1 | G18: 511421.07
A19: Rejected Waste | C19: 143.4 | D19: 7.56 | E19: 11.28 | F19: 152.66 | G19: =SUM(C19:F19) -> 314.9 | H19: =IF(G19>0,G19/$G$18,"-") -> 0.0006157352883
A20: Unprocessed waste transferred out | C20: 7260.46 | D20: 6400.98 | E20: 6417.86 | F20: 5804.2 | G20: =SUM(C20:F20) -> 25883.5 | H20: =IF(G20>0,G20/$G$18,"-") -> 0.05061093787
A21: Total waste combusted ** | C21: 113030 | D21: 124466 | E21: 118594 | F21: 111824 | G21: =SUM(C21:F21) -> 467914
J22: Password for protected cells A password has been set to prevent accidental editing of cells with formulae. If you still need to make an edit for some reason then the password = 1234
A23: Energy Usage / Export | B23: Unit | C23: Q1 | D23: Q2 | E23: Q3 | F23: Q4 | G23: Year Total | H23: KWh/te
A24: Power Generated | B24: MWh | C24: 63805 | D24: 71159 | E24: 71022 | F24: 62413 | G24: =SUM(C24:F24) -> 268399 | H24: =IF(G24>0,G24*1000/$G$21,"-") -> 573.6075433
A25: Power Exported | C25: 49620 | D25: 55495 | E25: 55078 | F25: 47782 | G25: =SUM(C25:F25) -> 207975 | H25: =IF(G25>0,G25*1000/$G$21,"-") -> 444.4727022
A26: Power Used on site | C26: 14451 | D26: 15779 | E26: 16076 | F26: 14705 | G26: =SUM(C26:F26) -> 61011 | H26: =IF(G26>0,G26*1000/$G$21,"-") -> 130.3893451
A27: Power Imported | C27: 266 | D27: 115 | E27: 132 | F27: 74 | G27: 587 | H27: =IF(G27>0,G27*1000/$G$21,"-") -> 1.254504033
A28: Parasitic Load | B28: % | C28: =IF(C24>0,1-C25/(C24+C27),"-") -> 0.2255466592 | D28: =IF(D24>0,1-D25/(D24+D27),"-") -> 0.2213850773 | E28: =IF(E24>0,1-E25/(E24+E27),"-") -> 0.2259324845 | F28: =IF(F24>0,1-F25/(F24+F27),"-") -> 0.2353289484 | G28: =IF(G24>0,1-G25/(G24+G27),"-") -> 0.2268184961
A29: Thermal Energy Produced *** | B29: MWh | G29: =SUM(C29:F29) -> 0 | H29: =IF(G29>0,G29*1000/$G$21,"-") -> -
A30: Thermal Energy Exported *** | G30: 0 | H30: =IF(G30>0,G30*1000/$G$21,"-") -> -
A31: R1 value (if applicable) | B31: R1 | G31: 0.69
A33: Waste Disposal & Recovery | B33: Unit | C33: Q1 | D33: Q2 | E33: Q3 | F33: Q4 | G33: Year Total | H33: % inputs
A34: APC Residues - produced (including FGT, Boiler and ESP ash) | B34: tonnes | C34: 10187.2 | D34: 11865.12 | E34: 11635.72 | F34: 9482.64 | G34: =SUM(C34:F34) -> 43170.68 | H34: =IF(G34>0,G34/$G$21,"-") -> 0.09226199686
A35: IBA - produced | C35: 11472.58 | D35: 12644.96 | E35: 11791.02 | F35: 10661.92 | G35: 46570.48 | H35: =IF(G35>0,G35/$G$21,"-") -> 0.09952786196
A36: Metals recycling | C36: 3404.28 | D36: 3911.64 | E36: 3558.04 | F36: 3185.48 | G36: =SUM(C36:F36) -> 14059.44 | H36: 0.03004705993
A37: Other | C37: 0 | D37: 0 | E37: 0 | F37: 0 | G37: =SUM(C37:F37) -> 0 | H37: -
A38: Other | C38: 0 | D38: 0 | E38: 0 | F38: 0 | G38: 0 | H38: -
A39: Other | C39: 0 | D39: 0 | E39: 0 | F39: 0 | G39: 0 | H39: -
A41: Raw Material Usage | B41: Unit | C41: Q1 | D41: Q2 | E41: Q3 | F41: Q4 | G41: Year Total | H41: kg or Ltr /te
A42: Mains Water | B42: ltrs | C42: 24546971.2 | D42: 32266321.51 | E42: 38500450.54 | F42: 38142972.04 | G42: =SUM(C42:F42) -> 133456715.3 | H42: =IF(G42>0,G42/$G$21,"-") -> 285.2163331
A43: Other Water | B43: ltrs | G43: =SUM(C43:F43) -> 0 | H43: =IF(G43>0,G43/$G$21,"-") -> -
A44: Lime / hydrated lime | B44: kgs | C44: 642000 | D44: 706000 | E44: 758000 | F44: 768000 | G44: 2874000 | H44: 6.142154328
A45: Urea | B45: kgs | C45: 0 | D45: 0 | E45: 23000 | F45: 0 | G45: =SUM(C45:F45) -> 23000 | H45: 0.04915433178
A46: Activated carbon | B46: kgs | C46: 83000 | D46: 41000 | E46: 109000 | F46: 72000 | G46: 305000 | H46: 0.6518291823
A47: Caustic Soda | B47: kgs | C47: 24000 | D47: 49000 | E47: 42000 | F47: 24000 | G47: =SUM(C47:F47) -> 139000 | H47: 0.2970631355
A48: Hydrochloric Acid | B48: kgs | C48: 20000 | D48: 42000 | E48: 51000 | F48: 26000 | G48: =SUM(C48:F48) -> 139000 | H48: 0.2970631355
A49: Sand | B49: kgs | C49: 1033000 | D49: 592000 | E49: 717000 | F49: 567000 | G49: 2909000 | H49: 6.216954398
A50: Ammonia | B50: kgs | C50: 1000 | D50: 0 | E50: 0 | F50: 0 | G50: 1000 | H50: 0.00213714486
A51: Salt | B51: kgs | C51: 0 | D51: 0 | E51: 2000 | F51: 2000 | G51: 4000 | H51: 0.00854857944
A52: Fuel oil | B52: ltrs | C52: 477350 | D52: 323490 | E52: 307430 | F52: 463060 | G52: 1571330 | H52: 3.358159833
A54: Summary | B54: Line/Unit | C54: Q1 | D54: Q2 | E54: Q3 | F54: Q4 | G54: Year Total | I54: Hrs in year
A55: Availability of waste combustion by line, hrs **** | B55: 1 | C55: 1374 | D55: 1748 | E55: 1511 | F55: 2098 | G55: =SUM(C55:F55) -> 6731 | H55: =+G55/$I$55 -> 0.7683789954 | I55: 8760
B56: 2 | C56: 1773 | D56: 2016 | E56: 2153 | F56: 1847 | G56: 7789 | H56: =+G56/$I$55 -> 0.8891552511
B57: 3 | C57: 1948 | D57: 1857 | E57: 2167 | F57: 1223 | G57: 7195 | H57: 0.821347032
B58: 4
B59: 5
A60: Overall Availability, mean avg. of all lines, hrs | C60: =AVERAGE(C55:C57) -> 1698.333333 | D60: =AVERAGE(D55:D57) -> 1873.666667 | E60: 1943.666667 | F60: =AVERAGE(F55:F57) -> 1722.666667 | G60: =AVERAGE(G55:G59) -> 7238.333333 | H60: 0.8262937595
A61: Hours of turbine operations, hrs | B61: 1 | C61: 2108 | D61: 2169 | E61: 2167 | F61: 2198 | G61: 8642 | H61: 0.9865296804
A62: Hours of turbine operations, hrs | B62: 2 | G62: 0 | H62: 0
A63: Hours of heat / steam export | G63: 0 | H63: =IF(B63>0,G62/I55,"n/a") -> n/a
A64: Net Calorific Value of waste | B64: MJ/kg | C64: 10.338 | D64: 10.242 | E64: 10.639 | F64: 10.303
A65: Abnormal Events | B65: qty. | C65: 0 | D65: 1 | E65: 0 | F65: 0 | G65: 1 | H65: =IF(G65>0,"yes","no") -> yes
A66: Abnormal operation | B66: hours | C66: 0 | D66: 2.33 | E66: 0 | F66: 0 | G66: 2.33 | H66: =+(G66)/I55 -> 0.0002659817352
A67: Permit Breaches | B67: qty. | C67: 2 | D67: 0 | E67: 0 | F67: 1 | G67: 3 | H67: =IF(G67>0,"yes","no") -> yes

Sheet Operational Summary
A1: =+'Cover Page'!$B$29 -> Annual Performance Report 2023 | E1: =+'Cover Page'!$B$33 -> Kent Enviropower Limited
A3: Summary of Plant Operations and Maintenance during the reporting year | K3: Notes:
A5: Line 1 and Line 3 underwent planned maintenance outages in March and November this year, with particular focus in the following areas: - Statutory pressure system inspections - Furnace refractory inspection and repair/replacement - Modification of furnace crossover profile to eliminate ash build-up inside the furnace - Boiler cleaning and inspection using non-destructive testing - Inconel weld overlay of boiler tube to protect against corrosion from flue gas - Inspection and overhaul of 120+ valves to improve efficiency - Dry-ice cleaning of Electrostatic Precipitators to improve efficiency - Inspection and replacement of residue ash hopper walls where thin - Inspection and cleaning of electrical system components Line 2 was due to have an outage in September, but this was delayed until March 2024 in agreement with TUV (PSSR Competent Person). Outside of planned outages plant availability has remained roughly the same – challenges have included waste feed screw conveyors shearing unexpectedly, the failure of a gearbox on the Air Cooled Condenser, repeated failures of the Primary Air Fans. There are currently 60+ projects planned over the next 18 months to try and eliminate the repeated failures. | K5: Include summary of key operational and/or maintenance activity undertaken in the year, such as any major component upgrades and/or replacements
A29: Summary of Residue Handling for the reporting year
A31: Bottom ash, the combined boiler and ESP ash and the flue gas treatment residue (FGTR) from the bag filter system, are each sent for separate disposal off site by licensed contractors subject to waste licensing legislation. FGT is not mixed with any other ash at any time. The bottom ash is likely to be subject to ferrous and non ferrous metals extraction. IBA is subject to hazardous assessment twice a month and approx. 42 vehicles are sent off site every week for recovery. The APC residues are tested quarterly and approx. 35 tankers are sent off site every week. | K31: Include in here a summary of residue handling regimes and destinations

Sheet Perf. Form 1
A1: =+'Cover Page'!C39 -> 2023 | B1: Annual Reporting Performance Form 1
A3: =+'Cover Page'!B31 -> Permit EPR/BR4551IC | F3: Operator: | G3: =+'Cover Page'!B37:I37 -> 0
A4: Facility: | B4: =+'Cover Page'!B33:I33 -> Kent Enviropower Limited | F4: Form: | G4: Performance 1
A6: Reporting Period from: | D6: 2023-01-01 | F6: to: | G6: 2023-12-31
A8: =+A1 -> 2023 | B8: Annual Reporting of Waste Disposal and Recovery
A9: Waste Description | C9: Disposal Route(s) | E9: Disposal Tonnes | G9: Recovery Tonnes | I9: % / tonne of waste incinerated
A10: 1) Hazardous Wastes
A11: APC Residues (including FGT, Boiler and ESP ash) | C11: Landfill | E11: 12101.42 | I11: =IF((E11+G11)>0,(E11+G11)/'Operational Data'!$G$21, "-") -> 0.02586248755
A12: APC Residues (including FGT, Boiler and ESP ash) | C12: Recycling | G12: 31629.7 | I12: =IF((E12+G12)>0,(E12+G12)/'Operational Data'!$G$21, "-") -> 0.06759725078
I13: =IF((E13+G13)>0,(E13+G13)/'Operational Data'!$G$21, "-") -> -
I14: =IF((E14+G14)>0,(E14+G14)/'Operational Data'!$G$21, "-") -> -
A15: Total Hazardous Waste | E15: =SUM(E11:F14) -> 12101.42 | G15: =SUM(G11:H14) -> 31629.7 | I15: =IF((E15+G15)>0,(E15+G15)/'Operational Data'!$G$21, "-") -> 0.09345973833
A17: 2) Non-Hazardous Wastes
A18: IBA | C18: Recycling | G18: 46570.48 | I18: =IF((E18+G18)>0,(E18+G18)/'Operational Data'!$G$21, "-") -> 0.09952786196
A19: Ferrous Metal | C19: Recycling | G19: 14059.44 | I19: =IF((E19+G19)>0,(E19+G19)/'Operational Data'!$G$21, "-") -> 0.03004705993
A20: Process Water | C20: N/A | E20: 0 | G20: 0 | I20: =IF((E20+G20)>0,(E20+G20)/'Operational Data'!$G$21, "-") -> -
I21: =IF((E21+G21)>0,(E21+G21)/'Operational Data'!$G$21, "-") -> -
I22: =IF((E22+G22)>0,(E22+G22)/'Operational Data'!$G$21, "-") -> -
A23: Total Non-Hazardous Waste | E23: =SUM(E18:F22) -> 0 | G23: =SUM(G18:H22) -> 60629.92 | I23: =IF((E23+G23)>0,(E23+G23)/'Operational Data'!$G$21, "-") -> 0.1295749219
A24: TOTAL WASTE | E24: =+E23+E15 -> 12101.42 | G24: =+G23+G15 -> 92259.62 | I24: =IF((E24+G24)>0,(E24+G24)/'Operational Data'!$G$21, "-") -> 0.2230346602
A26: Operator’s comments :
A27: APCr continues to shift significantly from landfill to recycling and this trend is set to continue into 2024.
A31: =+A1 -> 2023 | B31: Annual Reporting of Water and Other Raw Material Usage
A32: Raw Material | E32: Usage | G32: Unit | H32: Specific Useage | J32: Unit
A33: Mains Water | E33: 133456.715 | G33: m3 | H33: =IF(E33>0,E33/'Operational Data'!$G$21,"-") -> 0.2852163325 | J33: m3/te
A34: Total Water | E34: 133456.715 | G34: m3 | H34: =IF(E34>0,E34/'Operational Data'!$G$21,"-") -> 0.2852163325 | J34: m3/te
A35: Lime / hydrated lime | E35: =+'Operational Data'!G44 -> 2874000 | G35: kgs | H35: =IF(E35>0,E35/'Operational Data'!$G$21,"-") -> 6.142154328 | J35: kg/te
A36: Urea | E36: =+'Operational Data'!G45 -> 23000 | G36: kgs | H36: =IF(E36>0,E36/'Operational Data'!$G$21,"-") -> 0.04915433178 | J36: kg/te
A37: Activated carbon | E37: =+'Operational Data'!G46 -> 305000 | G37: kgs | H37: =IF(E37>0,E37/'Operational Data'!$G$21,"-") -> 0.6518291823 | J37: kg/te
A38: Caustic Soda | E38: =+'Operational Data'!G47 -> 139000 | G38: kgs | H38: =IF(E38>0,E38/'Operational Data'!$G$21,"-") -> 0.2970631355 | J38: kg/te
A39: Hydrochloric Acid | E39: =+'Operational Data'!G48 -> 139000 | G39: kgs | H39: =IF(E39>0,E39/'Operational Data'!$G$21,"-") -> 0.2970631355 | J39: kg/te
A40: Sand | E40: =+'Operational Data'!G49 -> 2909000 | G40: kgs | H40: =IF(E40>0,E40/'Operational Data'!$G$21,"-") -> 6.216954398 | J40: kg/te
A41: Ammonia | E41: =+'Operational Data'!G50 -> 1000 | G41: kgs | H41: =IF(E41>0,E41/'Operational Data'!$G$21,"-") -> 0.00213714486 | J41: kg/te
A42: Salt | E42: =+'Operational Data'!G51 -> 4000 | G42: kgs | H42: =IF(E42>0,E42/'Operational Data'!$G$21,"-") -> 0.00854857944 | J42: kg/te
A43: Fuel oil | E43: =+'Operational Data'!G52 -> 1571330 | G43: ltrs | H43: =IF(E43>0,E43/'Operational Data'!$G$21,"-") -> 3.358159833 | J43: ltrs/te
A45: Operator’s comments :
A46: No comments for this section.
A49: =+A31 -> 2023 | B49: Annual Reporting of other performance indicators
A50: Parameter | C50: Results by Line
C51: A1 | D51: A2 | E51: A3 | F51: A4 | G51: A5 | I51: Turbine 1 | J51: Turbine 2
A52: Operating hours for the year, hours | C52: 6731 | D52: 7789 | E52: 7195 | I52: 8642
A53: Number of periods of abnormal operation, qty. | C53: 0 | D53: 1 | E53: 0
A54: Cumulative hours of abnormal operation for this year, hours | C54: 0 | D54: 2 | E54: 0
A56: Operator’s comments :
A57: The number of periods of abnormal operation have reduded in 2024 from 2023.
A61: Signed: | G61: Date: | H61: 31st January 2024

Sheet Energy Form 1
A1: =+'Cover Page'!C39 -> 2023 | B1: Annual Reporting of Energy Usage/Export
A3: =+'Cover Page'!B31 -> Permit EPR/BR4551IC | F3: Operator: | G3: =+'Cover Page'!B37:I37 -> 0
A5: Facility: | B5: =+'Cover Page'!B33:I33 -> Kent Enviropower Limited | F5: Form: | G5: Energy 1
A7: Reporting Period from: | D7: =+'Perf. Form 1'!D6:E6 -> 2023-01-01 | F7: to: | G7: =+'Perf. Form 1'!G6:H6 -> 2023-12-31
A9: Energy Source | D9: Energy Usage | F9: Unit | G9: Specific Useage (KWh/tonne incinerated
A10: Electricity Produced | D10: =+'Operational Data'!G24 -> 268399 | F10: MWh | G10: =+'Operational Data'!H24 -> 573.6075433
A11: Electricity Imported | D11: =+'Operational Data'!G27 -> 587 | F11: MWh | G11: =+'Operational Data'!H27 -> 1.254504033
A12: Electricity Exported | D12: =+'Operational Data'!G25 -> 207975 | F12: MWh | G12: =+'Operational Data'!H25 -> 444.4727022
A13: Gas Oil | D13: 1398.48 | F13: tonnes | G13: 34.76
A14: Steam/hot water exported | D14: =+'Operational Data'!G30 -> 0 | F14: GWh | G14: =+'Operational Data'!H30 -> -
A18: Operator’s comments :
A19: A similar year to 2022 with the exception of imported electricty that was considerably less (2022 was 1936 MWh)
A29: Signed: | G29: Date: | H29: 31st January 2024

Sheet Permit Compliance
A1: =+'Cover Page'!$B$29 -> Annual Performance Report 2023 | E1: =+'Cover Page'!$B$33 -> Kent Enviropower Limited
A3: Summary of Permit Compliance
A5: Compliance with permit limits for continuously monitored pollutants
A7: The plant met its emission limits as shown in the table below:
A8: Substance | C8: Percentage time compliant during operationNote 1 | L8: Notes:
C9: Half-hourly limit | F9: Daily limit | L9: Note 1: Please report to 2 decimal places, i.e. xx.xx% Note 2: Please provide a brief summary of each notification or non-compliance in the table (rather than just referring to notifications that were sent to the Regulator), including stating the value of measured result for any ELV exceedances.
A10: Particulates | C10: 1 | F10: 1
A11: Oxides of nitrogen | C11: 0.9999 | F11: 1
A12: Sulphur dioxide | C12: 1 | F12: 1
A13: Carbon monoxide | C13: 100.00 % or 100.00% 95% of 10-min averages | F13: 1
A14: Total organic carbon | C14: 1 | F14: 1
A15: Hydrogen chloride | C15: 1 | F15: 1
A16: Hydrogen fluoride | C16: 1 | F16: 1
A17: Ammonia | C17: 1 | F17: 1
A19: Summary of any notifications or non-compliances under the permit
A20: Date | B20: Summary of notification or non-compliance [including Line/Reference]Note 2 | E20: Reason | H20: Measures taken to prevent reoccurrence
A21: 2023-02-14 | B21: 095 Schedule 5 - Line 2 Bi Annual testing | E21: The PAC screw speeds were at a minimum during the biannual testing resulting in less PAC being delivered to the process. PAC screw speeds were reduced because of a DCS faceplate amendment on line 2 in Sept 22 to correspond with line 1 and 3 settings. The logic behind the faceplate on line 2 was different to lines 1 and 3 resulting in dosing being reduced and resulting in a biannual test fail. | H21: Original settings restored Line 2 minimum dosing increased to 55% to allow system to get up to speed quicker System overhauled Check weighers calibrated retest carried out and passed 22/03/2023
A22: 2023-03-15 | B22: 096 Schedule 5 - Line 2 PAC dosing | E22: Intermittent fault on a digital input card resulted in the PAC not being dosed for the period | H22: Replacement digital input card installed The PAC dosing system has been interlocked with the waste feed via the DCS such that in the event of any future disruption to PAC dosing the waste feed stops i.e., it fails-to-safe.
A23: 2023-06-14 | B23: 027 Line 2 PAC abnormal operation | E23: Line 2 loadcell mA signal drifted so that the DCS reading on the buffer tank was around 50kg, when the true measurement was lower. The effect that this has on the system is that the signal back from the buffer tank will not reach the lower PAC fill limit of 10kg and will eventually run out dry. | H23: To overcome this, the team manually dosed the system, so we did not run out of PAC and then the system was zeroed when the trend flat lined at around 18/20kg. The loose electrical connection was tightened by one quarter turn and system returned to normal.
A24: 2023-11-18 | B24: 097 Schedule 5 - Line 2 NOx half hour | E24: Atomisation air flows were found to be off to the SNCR lance | H24: Investigation continues into this event.
A28: Summary of any complaints received and actions to taken to resolve them.
A29: Date | B29: Summary of complaint [including Line/Reference] | E29: Reason * | H29: Measures taken to prevent reoccurrence
A30: 2023-03-19 | B30: Odour | E30: Substantiated Operator | F30: Substantiated Operator | G30: Substantiated Operator | H30: All odour complaints have been justified on wind direction information. Following any odour complaint the facility carries out an odour survey and checks all odour controls are in place and compliant. The complainant is then contacted (if details are avialable) and advised of any findings and very often invited to the facility for a site tour.
A31: 2023-03-27 | B31: Odour | E31: Substantiated Operator | F31: Substantiated Operator | G31: Substantiated Operator
A32: 2023-04-01 | B32: Odour | E32: Substantiated Operator | F32: Substantiated Operator | G32: Substantiated Operator
A33: 2023-05-15 | B33: Odour | E33: Substantiated Operator | F33: Substantiated Operator | G33: Substantiated Operator
A34: 2023-05-16 | B34: Odour | E34: Substantiated Operator | F34: Substantiated Operator | G34: Substantiated Operator
A35: 2023-05-24 | B35: Odour | E35: Substantiated Operator | F35: Substantiated Operator | G35: Substantiated Operator
A36: 2023-05-24 | B36: Odour | E36: Substantiated Operator | F36: Substantiated Operator | G36: Substantiated Operator
A37: 2023-06-13 | B37: Odour | E37: Substantiated Operator | F37: Substantiated Operator | G37: Substantiated Operator
A38: 2023-06-13 | B38: Odour | E38: Substantiated Operator | F38: Substantiated Operator | G38: Substantiated Operator
A39: 2023-06-27 | B39: Odour | E39: Substantiated Operator | F39: Substantiated Operator | G39: Substantiated Operator
A40: 2023-06-29 | B40: Odour | E40: Substantiated Operator | F40: Substantiated Operator | G40: Substantiated Operator
A41: 2023-07-24 | B41: Odour & noise | E41: Substantiated Operator - Noise not substantiated | F41: Substantiated Operator | G41: Substantiated Operator
A42: 2023-08-06 | B42: Odour | E42: Substantiated Operator | F42: Substantiated Operator | G42: Substantiated Operator
A43: 2023-08-09 | B43: Odour | E43: Substantiated Operator | F43: Substantiated Operator | G43: Substantiated Operator
E44: * including whether substantiated by the operator or the EA

Sheet Improvements
A1: =+'Cover Page'!$B$29 -> Annual Performance Report 2023 | E1: =+'Cover Page'!$B$33 -> Kent Enviropower Limited
A3: Summary of Plant Improvements
A5: Summary of any efficiency improvements that have been completed within the year.
A6: We are working on improving combustion stability. This is being done by: - new control logics have been installed and they are currently under test and fine tuning to obtain the best results. - testing the addition of a second O2 sensor. This is also part of the combustion stability. Currently the material for the cooling tubes are being tested prior to installation and data recording of the O2 sensor. This year 2024 we are expecting to see results and the possibility to install the sensor for data gathering. LED lighting still continuous as when light replacement at the end of the current lights life.
A16: Summary of any permit improvement conditions that have been completed within the year and the resulting environmental benefits.
A17: Following the issue of the version 012 BREF permit the following improvement conditions have been submitted on time:- IC2 Low and stable mercury. IC3 stable dioxins. IC4 Minimising NOx levels. IC5 Energy efficiency. This completes all the submissions of the Version 12 Permit Improvement condition submissions.
A27: Summary of any changes to the plant or operating techniques which required a variation to the permit and a summary of the resulting environmental impact.
A28: None required
A38: Summary of any other improvements made to the plant or planned to be made and a summary of the resulting environmental benefits.
A39: 1. 2023 planned abatement risk review was completed and is now being worked through. This is a significant in depth review of risk and will involve significant work through 2024. 2. Charging points were not installed in 2023 and are back in the plan to install in 2024. 3. Investment in new environmental front loaders and a road sweeper were completed in 2023. 4. There has been a reduction in odour complaints following considerable effort in roller shutter door improvements and the installation of extra door control buttons located both inside and outside. 5. Re profiling of the ash crossover ducts is proving successful in process stability. Lines 1 and 2 are complete with line 3 planned for March 2024.

Sheet Public Liasion
A1: =+'Cover Page'!$B$29 -> Annual Performance Report 2023 | E1: =+'Cover Page'!$B$33 -> Kent Enviropower Limited
A3: Details of Public & Stakeholder Liaison
A5: Summary of events held during the reporting year.
A6: Date | C6: Description
A7: 2023-02-13 | C7: The Facility has an active liaison group involving representatives from the following stakeholders: • Chairman - Mr Brian White • Environment Agency • 10 Local Residents • Councillors Walker and Hammond (TMBC members) • Councillors Robertson, Harwood and Daley (MBC members). Cllr Daley is also a member of KCC. • Councillors Homewood and Bird (KCC members) • Maidstone Borough Council Environmental Health, Wilcock • Councillors Walker and Balcombe (Aylesford Parish Council) • Tonbridge & Malling & Maidstone Borough Council Environmental Health • Kent County Council Waste Management • Kent Enviropower
A9: 2023-06-20
A11: 2023-10-24
A16: List of events planned for next year
A17: Date | C17: Description
A18: 2024-02-01 | C18: Opposite are the months for the Liaison meetings planned for 2024. There have been some spaces that have become available at the meeting. Invites have been sent out to prospective new members and all spaces have now been filled.
A20: 2024-06-01
A22: 2024-10-01
A29: If you wish to be involved in the public liaison programme, please contact Brian White (Chairman) - Email: drbdwhite@yahoo.co.uk

Sheet CO2 N2O
A1: =+'Cover Page'!$B$29 -> Annual Performance Report 2023 | C1: =+'Cover Page'!$B$33 -> Kent Enviropower Limited
A3: Carbon dioxide emissions and biogenic content of waste inputs | F3: Notes:
A5: Carbon dioxide emissions (all types of plant)
B6: Annual mass of carbon dioxide released | C6: tonnes | D6: 566000
B7: Annual mass of carbon dioxide released per tonne of waste burned | C7: t CO2 / t waste | D7: 1.2
B8: Annual mass of carbon dioxide released per MWh of energy exported | C8: t CO2 / MWh export | D8: 2.72
B9: Description of how annual carbon dioxide mass emission has been calculated. See Note 1 | C9: CO2 is obtained from a QAL 2 calibrated CEMS | F9: Note 1: Where available, data from CO2 CEMS should be used. Otherwise, only where no CEMS data is available, a suitable emissions factor should be used based on the tonnage of waste burned e.g.0.942 tCO2/t waste as per Tolvik report 2022, or other justified emissions factor - refer to embedded Environment Agency guidance note above or updated version for suitable descriptive text.
A10: Nitrous oxide emissions (only plants which use ammonia or urea to abate NOx emissions)
B11: Annual mass emissions of nitrous oxide | C11: tonnes N2O | D11: 6.588
B12: Description of how annual nitrous oxide mass emission has been calculated See Note 2 | C12: N2O is obtained from a QAL 2 calibrated CEMS | F12: Note 2: Where available, data from N2O CEMS should be used. If no CEMS data is available, from periodic monitoring. Otherwise, a suitable emissions factor should be used based on the tonnage of waste burned e.g. 0.0981 kgN20/t waste as per 2021 Pollution Inventory data for plants with urea-based SNCR - refer to embedded Environment Agency guidance note above or updated version for suitable descriptive text.
A13: Total annual carbon dioxide and nitrous oxide emissions. See Note 3. | C13: tonnes CO2e | D13: 1964 | F13: Note 3: Total annual carbon dioxide and nitrous oxide emissions reported as carbon dioxide equivalent where 1 tonne nitrous oxide is equivalent to 298 tonne carbon dioxide
A14: Biogenic CO2 emissions (See Note 4) | F14: Note 4: Only plants combusting residual municipal waste, refuse derived fuel or solid recovered fuel
B15: Percentage of total carbon dioxide emissions arising from biogenic waste | C15: % | D15: 0.56
B16: No. of measurements undertaken | C16: Number | D16: 1 month sampling
B17: Description of how percentage biogenic carbon dioxide emissions have been measured or calculated. See Note 5 | C17: Determination of biogenic carbon content of fuel from stationary sources (based on ASTM D6866/EN ISO 13833) | F17: Note 5: Examples include direct measurement via C14 method or BIOMA software - refer to embedded Environment Agency guidance note above or updated version for suitable descriptive text, quoting standards where relevant. Otherwise, as an approximation (and in lieu of any more accurate metrics which may be developed in future), the measured or estimated biogenic fraction by net calorific value can be assumed to be the same as the biogenic CO2 fraction of the total CO2 emissions from the plant.
A18: Biogenic fraction of waste feedstock (See Note 4)
B19: Yearly average biogenic percentage of the waste by net calorific value (NCV) | C19: % | D19: 0.4952
B20: If sampling undertaken, no. of samples used to ascertain average biogenic % above | C20: Number | D20: 1
B21: Description of how biogenic percentage (by NCV) has been calculated or estimated. See Note 6 | C21: Waste feed analysis carried out annually (these figures are from the 2023 report). The % recorded is all wastes (recorded at 99.80%) minus the following non biogenic waste:- Plastic film 14.32% Dense plastic 20.54% Note: Textiles 15.42% - This calculation assumed textiles are 100% biogenic. | F21: Note 6: Where available, data from waste sampling should be used; otherwise, an estimated figure with justification can be used, or a figure assumed on the basis of a national average e.g. 2017 WRAP data for residual waste of 51.8% biogenic energy content - refer to embedded Environment Agency guidance note above or updated version for suitable descriptive text, quoting standards where relevant.
B23: Comments:
B24: CO2 and N2O have come directly from the continuous emission monitoring system (CEMS) and are both QAL 2 calibrated with calibration functions in place. Biogenic CO2 comes from a C14 testing process.

Sheet Residue Quality
A1: =+'Cover Page'!$B$29 -> Annual Performance Report 2023 | E1: =+'Cover Page'!$B$33 -> Kent Enviropower Limited
A3: Residue Quality Monitoring Requirements
A5: Summary of monitoring undertaken and compliance
A6: Waste Description: Bottom Ash Parameter to be measured : TOC, Metals (Cd, Tl, Hg, Pb, Cr, Cu, Mn, Ni, As, Co, V, Sb, Zn) and their compounds and the total soluble fraction of these metals, dioxins/ furans and dioxin like PCB’s. Sampling and analysis as per Agency ash sampling protocol. Frequency: Quarterly (with the exception of the total soluble fraction which shall be sampled and analysed before the use of a new disposal or recycling route). Hazard assessment undertaken twice a month (24 samples a year)
A9: Commentary on any specific events
A10: Date & Event | C10: Description
A11: NA | C11: NA
A23: Residue Quality Monitoring Results
A24: Parameter (unit) | C24: Limit | D24: Normal Operation
D25: Bottom ash | F25: APC Residues
A26: Loss on Ignition (average %) | C26: <5% | D26: NA*
A27: Total Organic Carbon (average %) | C27: <3% | D27: 0.006
A28: No. of Assessments Undertaken | C28: --- | D28: 28** | F28: 4**
A29: No. of Hazardous Results | C29: --- | D29: 0
A31: Comments :
A32: * The new permit variation BREF (BR4551IC version 012) no longer requires LOI to be recorded. ** This equates to 24 IBA hazard assessments and 4 quarterly reports.

Sheet Water
A1: =+'Cover Page'!$B$29 -> Annual Performance Report 2023 | E1: =+'Cover Page'!$B$33 -> Kent Enviropower Limited
A3: Emissions to Water
A5: Summary of monitoring undertaken and compliance
A6: Parameters for which reports shall be made, in accordance with conditions of the Consent to the Discharge of Trade Effluent issued by Southern Water, are listed below and are measured monthly. These are not Environmental Permit limits but limits for disposal of effluent water discharged down sewage drains.
A13: Commentary on any specific events
A14: Date & Event | C14: Description
A15: 2023-04-01 | C15: This sample point has been problematic in the past because the point is very often dry. An action on our internal incident system 'Airsweb' number 18975 has been raised to review the point and see if a better sampling point can be found.
A17: 2023-11-01
A22: Emissions to Water / Sewer
A23: Parameter | D23: Monitoring Frequency | F23: Limit | G23: Target | H23: Max. | I23: Average
A24: Arsenic | D24: monthly | F24: 1 | G24: 1 | H24: 0.1 | I24: 0.05333333333
A25: COD shaken | D25: monthly | F25: 800 | G25: 800 | H25: 54.6 | I25: 16.925
A26: Chromium | D26: monthly | F26: 1 | G26: 1 | H26: 0.1 | I26: 0.06416666667
A27: Copper | D27: monthly | F27: 1 | G27: 1 | H27: 1 | I27: 0.4733333333
A28: Fluoride | D28: monthly | F28: 2 | G28: 2 | H28: 0.9 | I28: 0.2591666667
A29: Lead | D29: monthly | F29: 1 | G29: 1 | H29: 0.1 | I29: 0.05333333333
A30: Molybdenum | D30: monthly | F30: 1 | G30: 1 | H30: 0.1 | I30: 0.05416666667
A31: Nickel | D31: monthly | F31: 1 | G31: 1 | H31: 0.1 | I31: 0.05333333333
A32: Selenium | D32: monthly | F32: 1 | G32: 1 | H32: 0.1 | I32: 0.05333333333
A33: Suspended solids | D33: monthly | F33: 200 | G33: 200 | H33: 329 | I33: 84.58333333
A34: Sulphate | D34: monthly | F34: 500 | G34: 500 | H34: 128 | I34: 42.5925
A35: Zinc | D35: monthly | F35: 3 | G35: 3 | H35: 0.5 | I35: 0.1191666667
A36: pH | D36: monthly | H36: 10.6 | I36: 6.641666667

Sheet Air (CEMS)
A1: =+'Cover Page'!$B$29 -> Annual Performance Report 2023 | I1: =+'Cover Page'!$B$33 -> Kent Enviropower Limited
A3: Emissions to Air (continously monitored)
N4: Notes:
A5: Summary of monitoring undertaken, standards used and compliance | N5: Template may require adjustment for any bespoke monitoring requirements of permit
A6: Monitoring is underatken as required by permit BR4551IC version 12 and all determinants are from QAL 2 calibrated CEMS. | N6: Please check that all default ELV values match those for your plant and edit if necessary!
N7: Report to 1 decimal place
A11: Results of emissions to air that are continuously monitored (maximum and average values for each line) - oxygen reference 11%
A12: Substance | B12: Reference Period | C12: Emission Limit Value** | D12: A1 | F12: A2 | H12: A3 | J12: A4 | L12: A5
D13: Max. | E13: Avg. | F13: Max. | G13: Avg. | H13: Max. | I13: Avg. | J13: Max. | K13: Avg. | L13: Max. | M13: Avg. | N13: ** Denotes limits that were in force until 2 December 2023; from 3 December 2023 the following new limits applied (those not listed remained unchanged):
A14: Oxides of nitrogen | B14: Daily mean | C14: 200 mg/m3 | D14: 161.7102661 | E14: 120.5624332 | F14: 165.8664856 | G14: 139.2493321 | H14: 170.0470123 | I14: 114.3262735
B15: ½ hourly mean | C15: 400 mg/m3 | D15: 383.5377808 | E15: 123.3554414 | F15: 476.520752 | G15: 139.3587807 | H15: 299.4014282 | I15: 115.1546603 | N15: Substance | O15: Reference Period | P15: Emission Limit Value
A16: Particulates | B16: Daily mean | C16: 10 mg/m3 | D16: 9.456481934 | E16: 2.078261324 | F16: 4.126410007 | G16: 2.230580165 | H16: 6.821818829 | I16: 2.716850275
B17: ½ hourly mean | C17: 30 mg/m3 | D17: 25.99516296 | E17: 3.046278422 | F17: 8.314645767 | G17: 2.232040208 | H17: 11.21144676 | I17: 2.706399851 | N17: Oxides of nitrogen | O17: Daily mean | P17: 180 mg/m3
A18: Total Organic Carbon | B18: Daily mean | C18: 10 mg/m3 | D18: 5.748392105 | E18: 0.3967073703 | F18: 1.530833006 | G18: 0.2910732205 | H18: 2.183098078 | I18: 0.4163131518 | N18: Particulates | O18: Daily mean | P18: 5 mg/m3
B19: *½ hourly mean | C19: *20 mg/m3 | D19: 345.9983826 | E19: 0.4460959069 | F19: 48.29969025 | G19: 0.3007176174 | H19: 40.8051796 | I19: 0.4226399982 | N19: Hydrogen chloride | O19: Daily mean | P19: 8 mg/m3
A20: Hydrogen chloride | B20: Daily mean | C20: 10 mg/m3 | D20: 5.471459866 | E20: 2.200291092 | F20: 6.211804867 | G20: 3.621175093 | H20: 6.009759903 | I20: 3.558788754 | N20: Sulphur dioxide | O20: Daily mean | P20: 40 mg/m3
B21: ½ hourly mean | C21: 60 mg/m3 | D21: 26.61801147 | E21: 2.185984006 | F21: 16.19000435 | G21: 3.605254368 | H21: 46.08628464 | I21: 3.537946067 | N21: Ammonia | O21: Daily mean | P21: 15 mg/m3
A22: Sulphur dioxide | B22: Daily mean | C22: 50 mg/m3 | D22: 3.451426983 | E22: 0.6209977016 | F22: 2.501228094 | G22: 0.6832082219 | H22: 1.860689998 | I22: 0.3907868338
B23: ½ hourly mean | C23: 200 mg/m3 | D23: 102.4050751 | E23: 0.6060973894 | F23: 62.48234558 | G23: 0.6856982097 | H23: 166.1654968 | I23: 0.4111266471
A24: Carbon monoxide | B24: Daily mean | C24: 50 mg/m3 | D24: 46.08336639 | E24: 2.522539196 | F24: 22.60973167 | G24: 2.089627349 | H24: 23.41312599 | I24: 4.729113
B25: 95%ile 10-min avg * | C25: 150 mg/m3 * | D25: 25.70679283 | E25: N/A | F25: 12.55809689 | G25: N/A | H25: 35.76884079 | I25: N/A
A26: Ammonia | B26: Daily mean | C26: 10 mg/m3 | D26: 0.6978179812 | E26: 0.05597413881 | F26: 0.5421429873 | G26: 0.07511041903 | H26: 0.6933739781 | I26: 0.172396854
A28: Comments :
A29: * TOC is 97% of all half hour averages in a rolling year and this has been compliant for all periods.

Sheet Air (periodic)
A1: =+'Cover Page'!$B$29 -> Annual Performance Report 2023 | E1: =+'Cover Page'!$B$33 -> Kent Enviropower Limited
A3: Emissions to Air (periodically monitored)
A5: Summary of monitoring undertaken, standards used and compliance | K5: Notes:
A6: Samples taken as required by the new permit variation BREF BR4551IC version 12 | K6: Template may require adjustment for any bespoke monitoring requirements of permit - please also check that all default ELV values, reference periods and the stated oxygen reference value match those for your plant, and edit if necessary!
A9: Results of emissions to air that are periodically monitored
A10: Substance | C10: Ref. Period | D10: Emission Limit Value* | F10: Average | K10: User to add additional tables as necessary, depending on whether quarterly or bi-annual reporting is required for the compliance year
F11: A1 | G11: A2 | H11: A3 | I11: A4 | J11: A5
A12: Cadmium & Thallium | C12: Average of three consecutive measurements of at least 30 minutes each | D12: 0.05 mg/m3 | F12: 0.0019 | G12: 0.0064 | H12: 0.0019
A13: Heavy Metals | C13: Average of three consecutive measurements of at least 30 minutes each | D13: 0.5 mg/m3 | F13: 0.066 | G13: 0.4635 | H13: 0.0605
A14: Mercury | C14: Average of three consecutive measurements of at least 30 minutes each | D14: 0.05 mg/m3 | F14: 0.000515 | G14: 0.000555 | H14: 0.00065 | K14: * Denotes limits that were in force until 2 December 2023; from 3 December 2023 the following new limits applied (those not listed remained unchanged):
A15: Hydrogen Fluoride | C15: Average of three consecutive measurements of at least 30 minutes each | D15: 2 mg/m3 | F15: 0.038 | G15: 0.0375 | H15: 0.0385
A16: Dioxins / furans (I-TEQ)6 | C16: Over period between 6 and 8 hours | D16: 0.1 µg/m3 | F16: 0.0385 | G16: 0.065 | H16: 0.053 | K16: Substance | L16: Reference Period | M16: Emission Limit Value
A17: Dioxins / furans (WHO-TEQ Humans / Mammals) 6 | C17: Over period between 6 and 8 hours | D17: None set µg/m3 | F17: 0.0365 | G17: 0.064 | H17: 0.0555
A18: Dioxins / furans (WHO-TEQ Fish) 6 | C18: Over period between 6 and 8 hours | D18: None set µg/m3 | F18: 0.0285 | G18: 0.048 | H18: 0.0415 | K18: Hydrogen fluoride | L18: Average of three consecutive measurements of at least 30 minutes each | M18: 1 mg/m3
A19: Dioxins / furans (WHO-TEQ Birds) 6 | C19: Over period between 6 and 8 hours | D19: None set µg/m3 | F19: 0.041 | G19: 0.0605 | H19: 0.049 | K19: Cd and Th and their compounds | L19: Average of three consecutive measurements of at least 30 minutes each | M19: 0.02 mg/m3
A20: Dioxin-like PCBs (WHO-TEQ Humans / Mammals)6 | C20: Over period between 6 and 8 hours | D20: None set µg/m3 | F20: 0.001615 | G20: 0.00265 | H20: 0.00175 | K20: Hg and its compounds | L20: Average of three consecutive measurements of at least 30 minutes each | M20: 0.02 mg/m3
A21: Dioxin-like PCBs (WHO-TEQ Fish)6 | C21: Over period between 6 and 8 hours | D21: None set µg/m3 | F21: 7e-05 | G21: 0.000114 | H21: 0.01405 | K21: Sb, As, Pb, Cr, Co, Cu, Mn, Ni, V and their compounds | L21: Average of three consecutive measurements of at least 30 minutes each | M21: 0.3 mg/m3
A22: Dioxin-like PCBs (WHO-TEQ Birds)6 | C22: Over period between 6 and 8 hours | D22: None set µg/m3 | F22: 0.00335 | G22: 0.00475 | H22: 0.01975 | K22: Dioxins & Furans (I-TEQ) | L22: 6-8hrs | M22: 0.06 ng/m3
A23: Brominated Dioxins & Furans (NATO I-TEQ) | C23: Over period between 6 and 8 hours | D23: None set µg/m4 | F23: 0.0019 | G23: 0.00225 | H23: 0.0021
A24: PAHs (DEFRA 16) | C24: Over period between 6 and 8 hours | D24: None set µg/m3 | F24: 0.23 | G24: 0.12 | H24: 0.13
A25: Anthanthrene | C25: Over period between 6 and 8 hours | D25: None set µg/m3 | F25: 0.0015 | G25: 0.0013 | H25: 0.0015
A26: Benzo{a}anthracene | C26: Over period between 6 and 8 hours | D26: None set µg/m3 | F26: 0.0015 | G26: 0.0013 | H26: 0.0015
A27: Benzo[b]fluoranthene | C27: Over period between 6 and 8 hours | D27: None set µg/m3 | F27: 0.0015 | G27: 0.0013 | H27: 0.0015
A28: Benzo[k]fluoranthene | C28: Over period between 6 and 8 hours | D28: None set µg/m3 | F28: 0.0015 | G28: 0.0013 | H28: 0.0015
A29: Benzo[b]naph(2,1-d}thiophene | C29: Over period between 6 and 8 hours | D29: None set µg/m3 | F29: 0.0015 | G29: 0.0013 | H29: 0.0015
A30: Benzo[c]phenanthrene | C30: Over period between 6 and 8 hours | D30: None set µg/m3 | F30: 0.0015 | G30: 0.0013 | H30: 0.0015
A31: Benzo[ghi]perylene | C31: Over period between 6 and 8 hours | D31: None set µg/m3 | F31: 0.0035 | G31: 0.0013 | H31: 0.0015
A32: Benzo[a]pyrene | C32: Over period between 6 and 8 hours | D32: None set µg/m3 | F32: 0.0015 | G32: 0.0013 | H32: 0.0015
A33: Cholanthrene | C33: Over period between 6 and 8 hours | D33: None set µg/m3 | F33: 0.0015 | G33: 0.0013 | H33: 0.0015
A34: Chrysene | C34: Over period between 6 and 8 hours | D34: None set µg/m3 | F34: 0.0015 | G34: 0.0018 | H34: 0.0015
A35: Cyclopenta(cd)pyrene | C35: Over period between 6 and 8 hours | D35: None set µg/m3 | F35: 0.0015 | G35: 0.0013 | H35: 0.0015
A36: Dibenzo[ah]anthracene | C36: Over period between 6 and 8 hours | D36: None set µg/m3 | F36: 0.0015 | G36: 0.0013 | H36: 0.0015
A37: Dibenzo[ai]pyrene | C37: Over period between 6 and 8 hours | D37: None set µg/m3 | F37: 0.0015 | G37: 0.0013 | H37: 0.0015
A38: Fluoranthene | C38: Over period between 6 and 8 hours | D38: None set µg/m3 | F38: 0.022 | G38: 0.02 | H38: 0.017
A39: Indeno[1,2,3-cd]pyrene | C39: Over period between 6 and 8 hours | D39: None set µg/m3 | F39: 0.0015 | G39: 0.0013 | H39: 0.0015
A40: Naphthalene | C40: Over period between 6 and 8 hours | D40: None set µg/m3 | F40: 0.18 | G40: 0.081 | H40: 0.094
A41: Comments :
A42: All determinants passed periodic testing.

Sheet HCl
A1: =+'Cover Page'!$B$29 -> Annual Performance Report 2023 | E1: =+'Cover Page'!$B$33 -> Kent Enviropower Limited
A3: Monitoring of Hydrogen Chloride emissions | D3: Whole Installation | G3: See Notes in Cell Q3 | J3: =+A3 -> Monitoring of Hydrogen Chloride emissions | N3: Per Combustion Line | Q3: Notes:
Q4: User to add logic to complete Whole installation, Table A5:G18. From the data in Per Combustion Line, Table J6:O79, subject to No. of lines installed
A5: mg/Nm3 | B5: 1/2 Hourly Reference Periods | E5: Daily Reference Periods
A6: =+'Cover Page'!C39 -> 2023 | B6: 1/2 hourly HCl ELV | C6: Monthly 1/2 hourly mean | D6: Highest 1/2 hourly maximum | E6: Daily HCl ELV* | F6: Monthly daily mean | G6: Highest daily maximum | J6: =+A6 -> 2023 | K6: mg/Nm3 | L6: Monthly 1/2 hourly mean | M6: Monthly 1/2 hourly maximum | N6: Monthly daily mean | O6: Monthly daily maximum
A7: Jan | B7: 60 | C7: =AVERAGE(L7,L22,L37) -> 1.81738893 | D7: =MAX(M7,M22,M37) -> 14.80586624 | E7: 10 | F7: =AVERAGE(N7,N22,N37) -> 2.08177669 | G7: =MAX(O7,O22,O37) -> 3.513639927 | J7: A1 | K7: Jan | L7: 0.3759232685 | M7: 14.80586624 | N7: 1.144141361 | O7: 0.8292409778
A8: Feb | B8: 60 | C8: =AVERAGE(L8,L23,L38) -> 2.572111168 | D8: =MAX(M8,M23,M38) -> 15.27717972 | E8: 10 | F8: =AVERAGE(N8,N23,N38) -> 2.580120926 | G8: =MAX(O8,O23,O38) -> 3.938525915 | K8: Feb | L8: 1.605517407 | M8: 15.27717972 | N8: 1.566629562 | O8: 3.114459991
A9: Mar | B9: 60 | C9: 2.949817443 | D9: 9.270809174 | E9: 10 | F9: 2.084196085 | G9: 3.962404966 | K9: Mar | L9: 2.674579868 | M9: 9.270809174 | N9: 0 | O9: 0 | Q9: Whole Installation table A5:G18:
A10: Apr | B10: 60 | C10: 3.491481059 | D10: 9.681576729 | E10: 10 | F10: 3.501568151 | G10: 5.276257992 | K10: Apr | L10: 2.423244372 | M10: 8.235590935 | N10: 2.453505478 | O10: 2.902273893 | Q10: Mean: for 1/2 hourly and daily periods calculate mean of values across all operational combustion lines for the month
A11: May | B11: 60 | C11: 4.050220347 | D11: 16.19000435 | E11: 10 | F11: 4.052114351 | G11: 5.529036999 | K11: May | L11: 3.388264059 | M11: 10.76442146 | N11: 3.388264079 | O11: 5.471459866
A12: Jun | B12: 60 | C12: 3.591161466 | D12: 10.27951622 | E12: 10 | F12: 3.629380307 | G12: 5.246367931 | K12: Jun | L12: 3.128070585 | M12: 9.777788162 | N12: 3.175245313 | O12: 5.246367931
A13: Jul | B13: 60 | C13: 3.461076773 | D13: 7.587712765 | E13: 10 | F13: 3.475265112 | G13: 5.207080841 | K13: Jul | L13: 2.287496718 | M13: 4.690743923 | N13: 2.330061585 | O13: 3.311570883 | Q13: Maximum: for 1/2 hourly and daily periods use the highest value across all operational combustion lines for the month
A14: Aug | B14: 60 | C14: 3.411443431 | D14: 24.21626854 | E14: 10 | F14: 3.376843858 | G14: 5.322838783 | K14: Aug | L14: 2.106730342 | M14: 24.21626854 | N14: 2.002931658 | O14: 3.015368938
A15: Sep | B15: 60 | C15: 2.976365145 | D15: 6.922934055 | E15: 10 | F15: 2.965124588 | G15: 4.467573166 | K15: Sep | L15: 1.925589006 | M15: 5.851902962 | N15: 1.865053497 | O15: 2.782882929
A16: Oct | B16: 60 | C16: 2.773864065 | D16: 46.08628464 | E16: 10 | F16: 2.755053657 | G16: 4.990839958 | K16: Oct | L16: 1.851016763 | M16: 26.61801147 | N16: 1.811993792 | O16: 4.937070847
A17: Nov | B17: 60 | C17: 2.18839084 | D17: 13.40424347 | E17: 10 | F17: 2.223440493 | G17: 3.820348978 | K17: Nov | L17: 1.241379876 | M17: 13.40424347 | N17: 1.241379871 | O17: 2.206140995
A18: Dec | B18: 60 | C18: 4.033417095 | D18: 12.27693272 | E18: 8 | F18: 4.062705174 | G18: 6.90693903 | K18: Dec | L18: 3.223995813 | M18: 12.27693272 | N18: 3.22399582 | O18: 6.90693903
E19: * ELV reduced to 8 mg/Nm3 on 3 December 2023 | K19: Annual | L19: =AVERAGE(L7:L18) -> 2.185984006 | M19: =MAX(M7:M18) -> 26.61801147 | N19: =AVERAGE(N7:N18) -> 2.016933501 | O19: =MAX(O7:O18) -> 6.90693903
J21: =+A6 -> 2023 | K21: mg/Nm3 | L21: Monthly 1/2 hourly mean | M21: Monthly 1/2 hourly maximum | N21: Monthly daily mean | O21: Monthly daily maximum
J22: A2 | K22: Jan | L22: 2.491055621 | M22: 7.00191021 | N22: 2.516000719 | O22: 2.931565046
K23: Feb | L23: 3.150541218 | M23: 9.421656609 | N23: 3.197196102 | O23: 3.890866041
K24: Mar | L24: 3.094955602 | M24: 6.506454945 | N24: 3.126422617 | O24: 3.627469063
K25: Apr | L25: 4.264644683 | M25: 9.681576729 | N25: 4.264644766 | O25: 5.276257992
K26: May | L26: 4.641501507 | M26: 16.19000435 | N26: 4.641501542 | O26: 5.529036999
K27: Jun | L27: 3.62211742 | M27: 9.073111534 | N27: 3.67602629 | O27: 4.562633991
K28: Jul | L28: 3.81354008 | M28: 6.988769054 | N28: 3.813540228 | O28: 4.895994186
K29: Aug | L29: 3.953023626 | M29: 9.090286255 | N29: 3.953023588 | O29: 4.688901901
K30: Sep | L30: 3.510486954 | M30: 6.922934055 | N30: 3.531322188 | O30: 4.161861897
K31: Oct | L31: 3.483535836 | M31: 12.27959347 | N31: 3.485925938 | O31: 4.990839958
K32: Nov | L32: 2.867342613 | M32: 7.057710171 | N32: 2.878059626 | O32: 3.820348978
K33: Dec | L33: 4.370307251 | M33: 9.478096962 | N33: 4.370437515 | O33: 6.211804867
K34: Annual | L34: =AVERAGE(L22:L33) -> 3.605254368 | M34: =MAX(M22:M33) -> 16.19000435 | N34: =AVERAGE(N22:N33) -> 3.621175093 | O34: =MAX(O22:O33) -> 6.211804867
J36: =+A6 -> 2023 | K36: mg/Nm3 | L36: Monthly 1/2 hourly mean | M36: Monthly 1/2 hourly maximum | N36: Monthly daily mean | O36: Monthly daily maximum
J37: A3 | K37: Jan | L37: 2.585187901 | M37: 6.482057095 | N37: 2.585187989 | O37: 3.513639927
K38: Feb | L38: 2.960274879 | M38: 7.642309189 | N38: 2.976537114 | O38: 3.938525915
K39: Mar | L39: 3.079916859 | M39: 8.660959244 | N39: 3.126165638 | O39: 3.962404966
K40: Apr | L40: 3.786554122 | M40: 8.498625755 | N40: 3.786554209 | O40: 4.555339813
K41: May | L41: 4.120895476 | M41: 10.51273346 | N41: 4.126577433 | O41: 5.216828823
K42: Jun | L42: 4.023296394 | M42: 10.27951622 | N42: 4.036869319 | O42: 4.72719717
K43: Jul | L43: 4.282193522 | M43: 7.587712765 | N43: 4.282193522 | O43: 5.207080841
K44: Aug | L44: 4.174576324 | M44: 7.297701836 | N44: 4.174576329 | O44: 5.322838783
K45: Sep | L45: 3.493019477 | M45: 6.719820023 | N45: 3.49899808 | O45: 4.467573166
K46: Oct | L46: 2.987039596 | M46: 46.08628464 | N46: 2.967241242 | O46: 3.689328909
K47: Nov | L47: 2.456450031 | M47: 3.449738979 | N47: 2.550881982 | O47: 2.683301926
A48: Comments : | K48: Dec | L48: 4.50594822 | M48: 10.72533989 | N48: 4.593682185 | O48: 6.009759903
K49: Annual | L49: =AVERAGE(L37:L48) -> 3.537946067 | M49: =MAX(M37:M48) -> 46.08628464 | N49: =AVERAGE(N37:N48) -> 3.558788754 | O49: =MAX(O37:O48) -> 6.009759903
J51: =+A6 -> 2023 | K51: mg/Nm3 | L51: Monthly 1/2 hourly mean | M51: Monthly 1/2 hourly maximum | N51: Monthly daily mean | O51: Monthly daily maximum
J52: A4 | K52: Jan
K53: Feb
K54: Mar
K55: Apr
K56: May
K57: Jun
K58: Jul
K59: Aug
K60: Sep
K61: Oct
K62: Nov
K63: Dec
K64: Annual | L64: =AVERAGE(L52:L63) ->  | M64: =MAX(M52:M63) -> 0 | N64: =AVERAGE(N52:N63) ->  | O64: =MAX(O52:O63) -> 0
J66: =+A6 -> 2023 | K66: mg/Nm3 | L66: Monthly 1/2 hourly mean | M66: Monthly 1/2 hourly maximum | N66: Monthly daily mean | O66: Monthly daily maximum
J67: A5 | K67: Jan
K68: Feb
K69: Mar
K70: Apr
K71: May
K72: Jun
K73: Jul
K74: Aug
K75: Sep
K76: Oct
K77: Nov
K78: Dec
K79: Annual | L79: =AVERAGE(L67:L78) ->  | M79: =MAX(M67:M78) -> 0 | N79: =AVERAGE(N67:N78) ->  | O79: =MAX(O67:O78) -> 0

Sheet SO2
A1: =+'Cover Page'!$B$29 -> Annual Performance Report 2023 | E1: =+'Cover Page'!$B$33 -> Kent Enviropower Limited
A3: Monitoring of Sulphur dioxide emissions | D3: Whole Installation | G3: See Notes in Cell Q3 | J3: =+A3 -> Monitoring of Sulphur dioxide emissions | N3: Per Combustion Line | Q3: Notes:
Q4: User to add logic to complete Whole installation, Table A5:G18. From the data in Per Combustion Line, Table J6:O79, subject to No. of lines installed
A5: mg/Nm3 | B5: 1/2 Hourly Reference Periods | E5: Daily Reference Periods
A6: =+'Cover Page'!C39 -> 2023 | B6: 1/2 hourly SO2 ELV | C6: Monthly 1/2 hourly mean | D6: Highest 1/2 hourly maximum | E6: Daily SO2 ELV* | F6: Monthly daily mean | G6: Highest daily maximum | J6: =+A6 -> 2023 | K6: mg/Nm3 | L6: Monthly 1/2 hourly mean | M6: Monthly 1/2 hourly maximum | N6: Monthly daily mean | O6: Monthly daily maximum
A7: Jan | B7: 200 | C7: =AVERAGE(L7,L22,L37) -> 0.3992732805 | D7: =MAX(M7,M22,M37) -> 39.60863113 | E7: 50 | F7: =AVERAGE(N7,N22,N37) -> 0.3702000254 | G7: =MAX(O7,O22,O37) -> 1.485901952 | J7: A1 | K7: Jan | L7: 0.1022926719 | M7: 39.60863113 | N7: 0.05570121445 | O7: 0.305723995
A8: Feb | B8: 200 | C8: =AVERAGE(L8,L23,L38) -> 0.5362749371 | D8: =MAX(M8,M23,M38) -> 62.48234558 | E8: 50 | F8: =AVERAGE(N8,N23,N38) -> 0.5333395801 | G8: =MAX(O8,O23,O38) -> 1.969784975 | K8: Feb | L8: 0.3479425387 | M8: 49.61142349 | N8: 0.3391848157 | O8: 1.864858985
A9: Mar | B9: 200 | C9: 0.4999703165 | D9: 62.60967255 | E9: 50 | F9: 0.4745287323 | G9: 1.868823051 | K9: Mar | L9: 0.1131985131 | M9: 5.920506001 | N9: 0 | O9: 0 | Q9: Whole Installation table A5:G18:
A10: Apr | B10: 200 | C10: 0.4921228467 | D10: 29.89015388 | E10: 50 | F10: 0.4939817678 | G10: 1.785606027 | K10: Apr | L10: 0.2475282625 | M10: 13.23738956 | N10: 0.2531051053 | O10: 0.675508976 | Q10: Mean: for 1/2 hourly and daily periods calculate mean of values across all operational combustion lines for the month
A11: May | B11: 200 | C11: 0.5435007026 | D11: 41.39413452 | E11: 50 | F11: 0.5424356924 | G11: 1.596963048 | K11: May | L11: 0.4583990638 | M11: 41.39413452 | N11: 0.4584032578 | O11: 1.596963048
A12: Jun | B12: 200 | C12: 0.5330179465 | D12: 55.82955933 | E12: 50 | F12: 0.5217536507 | G12: 2.501228094 | K12: Jun | L12: 0.4846804372 | M12: 7.142096043 | N12: 0.4823789198 | O12: 0.8287379742
A13: Jul | B13: 200 | C13: 0.5458731554 | D13: 24.19688416 | E13: 50 | F13: 0.5484445598 | G13: 1.407102942 | K13: Jul | L13: 0.62019599 | M13: 24.19688416 | N13: 0.6279104531 | O13: 1.407102942 | Q13: Maximum: for 1/2 hourly and daily periods use the highest value across all operational combustion lines for the month
A14: Aug | B14: 200 | C14: 0.6175261675 | D14: 102.4050751 | E14: 50 | F14: 0.55856414 | G14: 1.516080022 | K14: Aug | L14: 0.8514133151 | M14: 102.4050751 | N14: 0.6745248715 | O14: 1.247604012
A15: Sep | B15: 200 | C15: 0.8801975376 | D15: 51.64772415 | E15: 50 | F15: 0.8714446273 | G15: 2.283308983 | K15: Sep | L15: 1.451736998 | M15: 23.71863937 | N15: 1.426822593 | O15: 2.283308983
A16: Oct | B16: 200 | C16: 0.7781734184 | D16: 166.1654968 | E16: 50 | F16: 0.6984260061 | G16: 3.451426983 | K16: Oct | L16: 1.122536955 | M16: 63.73040771 | N16: 1.039699727 | O16: 3.451426983
A17: Nov | B17: 200 | C17: 0.5204077805 | D17: 13.5912714 | E17: 50 | F17: 0.4940496465 | G17: 2.937125921 | K17: Nov | L17: 0.6556628035 | M17: 8.180921555 | N17: 0.6556627644 | O17: 2.937125921
A18: Dec | B18: 200 | C18: 0.4653508956 | D18: 16.2164402 | E18: 40 | F18: 0.4658033668 | G18: 2.892854929 | K18: Dec | L18: 0.8175811234 | M18: 16.2164402 | N18: 0.8175809951 | O18: 2.892854929
E19: * ELV reduced to 40 mg/Nm3 on 3 December 2023 | K19: Annual | L19: =AVERAGE(L7:L18) -> 0.6060973894 | M19: =MAX(M7:M18) -> 102.4050751 | N19: =AVERAGE(N7:N18) -> 0.5692478931 | O19: =MAX(O7:O18) -> 3.451426983
J21: =+A6 -> 2023 | K21: mg/Nm3 | L21: Monthly 1/2 hourly mean | M21: Monthly 1/2 hourly maximum | N21: Monthly daily mean | O21: Monthly daily maximum
J22: A2 | K22: Jan | L22: 0.7932698122 | M22: 23.91112137 | N22: 0.7526414752 | O22: 1.485901952
K23: Feb | L23: 0.7863106326 | M23: 62.48234558 | N23: 0.7818712711 | O23: 1.969784975
K24: Mar | L24: 0.8716121584 | M24: 20.25001907 | N24: 0.8745808646 | O24: 1.868823051
K25: Apr | L25: 0.6919771074 | M25: 18.76200676 | N25: 0.6919770608 | O25: 1.230010986
K26: May | L26: 0.6909410347 | M26: 23.45705414 | N26: 0.6909467511 | O26: 1.353018045
K27: Jun | L27: 0.8419224012 | M27: 55.82955933 | N27: 0.8407113647 | O27: 2.501228094
K28: Jul | L28: 0.74817275 | M28: 23.07775497 | N28: 0.7481726466 | O28: 1.240694046
K29: Aug | L29: 0.6457881515 | M29: 14.06536198 | N29: 0.6457905154 | O29: 1.387141943
K30: Sep | L30: 0.7828455335 | M30: 22.00335693 | N30: 0.7931291847 | O30: 1.723441005
K31: Oct | L31: 0.5871029908 | M31: 19.60848427 | N31: 0.5883321056 | O31: 0.8389670253
K32: Nov | L32: 0.4261496884 | M32: 12.04006958 | N32: 0.4266496648 | O32: 0.7991420031
K33: Dec | L33: 0.3622862559 | M33: 8.842168808 | N33: 0.3636957577 | O33: 0.6370999813
K34: Annual | L34: =AVERAGE(L22:L33) -> 0.6856982097 | M34: =MAX(M22:M33) -> 62.48234558 | N34: =AVERAGE(N22:N33) -> 0.6832082219 | O34: =MAX(O22:O33) -> 2.501228094
J36: =+A6 -> 2023 | K36: mg/Nm3 | L36: Monthly 1/2 hourly mean | M36: Monthly 1/2 hourly maximum | N36: Monthly daily mean | O36: Monthly daily maximum
J37: A3 | K37: Jan | L37: 0.3022573574 | M37: 20.61242867 | N37: 0.3022573864 | O37: 0.7838979959
K38: Feb | L38: 0.4745716399 | M38: 13.87238216 | N38: 0.4789626534 | O38: 0.9192590117
K39: Mar | L39: 0.515100278 | M39: 62.60967255 | N39: 0.5490053324 | O39: 1.860689998
K40: Apr | L40: 0.5368631702 | M40: 29.89015388 | N40: 0.5368631373 | O40: 1.785606027
K41: May | L41: 0.4811620092 | M41: 33.60503769 | N41: 0.4779570684 | O41: 1.490242004
K42: Jun | L42: 0.272451001 | M42: 14.77793217 | N42: 0.2421706676 | O42: 0.379474014
K43: Jul | L43: 0.2692507263 | M43: 18.58192062 | N43: 0.2692505797 | O43: 0.819460988
K44: Aug | L44: 0.355377036 | M44: 41.68753815 | N44: 0.3553770331 | O44: 1.516080022
K45: Sep | L45: 0.406010081 | M45: 51.64772415 | N45: 0.394382104 | O45: 1.855185986
K46: Oct | L46: 0.624880309 | M46: 166.1654968 | N46: 0.4672461858 | O46: 1.463006973
K47: Nov | L47: 0.4794108495 | M47: 13.5912714 | N47: 0.3998365104 | O47: 0.642391026
A48: Comments : | K48: Dec | L48: 0.2161853073 | M48: 11.27038288 | N48: 0.2161333477 | O48: 0.3943609893
K49: Annual | L49: =AVERAGE(L37:L48) -> 0.4111266471 | M49: =MAX(M37:M48) -> 166.1654968 | N49: =AVERAGE(N37:N48) -> 0.3907868338 | O49: =MAX(O37:O48) -> 1.860689998
J51: =+A6 -> 2023 | K51: mg/Nm3 | L51: Monthly 1/2 hourly mean | M51: Monthly 1/2 hourly maximum | N51: Monthly daily mean | O51: Monthly daily maximum
J52: A4 | K52: Jan
K53: Feb
K54: Mar
K55: Apr
K56: May
K57: Jun
K58: Jul
K59: Aug
K60: Sep
K61: Oct
K62: Nov
K63: Dec
K64: Annual | L64: =AVERAGE(L52:L63) ->  | M64: =MAX(M52:M63) -> 0 | N64: =AVERAGE(N52:N63) ->  | O64: =MAX(O52:O63) -> 0
J66: =+A6 -> 2023 | K66: mg/Nm3 | L66: Monthly 1/2 hourly mean | M66: Monthly 1/2 hourly maximum | N66: Monthly daily mean | O66: Monthly daily maximum
J67: A5 | K67: Jan
K68: Feb
K69: Mar
K70: Apr
K71: May
K72: Jun
K73: Jul
K74: Aug
K75: Sep
K76: Oct
K77: Nov
K78: Dec
K79: Annual | L79: =AVERAGE(L67:L78) ->  | M79: =MAX(M67:M78) -> 0 | N79: =AVERAGE(N67:N78) ->  | O79: =MAX(O67:O78) -> 0

Sheet NOx
A1: =+'Cover Page'!$B$29 -> Annual Performance Report 2023 | E1: =+'Cover Page'!$B$33 -> Kent Enviropower Limited
A3: Monitoring of Oxides of Nitrogen emissions | D3: Whole Installation | G3: See Notes in Cell Q3 | J3: =+A3 -> Monitoring of Oxides of Nitrogen emissions | N3: Per Combustion Line | Q3: Notes:
Q4: User to add logic to complete Whole installation, Table A5:G18. From the data in Per Combustion Line, Table J6:O79, subject to No. of lines installed
A5: mg/Nm3 | B5: 1/2 Hourly Reference Periods | E5: Daily Reference Periods
A6: =+'Cover Page'!C39 -> 2023 | B6: 1/2 hourly NOx ELV | C6: Monthly 1/2 hourly mean | D6: Highest 1/2 hourly maximum | E6: Daily NOx ELV* | F6: Monthly daily mean | G6: Highest daily maximum | J6: =+A6 -> 2023 | K6: mg/Nm3 | L6: Monthly 1/2 hourly mean | M6: Monthly 1/2 hourly maximum | N6: Monthly daily mean | O6: Monthly daily maximum
A7: Jan | B7: 400 | C7: =AVERAGE(L7,L22,L37) -> 128.4810932 | D7: =MAX(M7,M22,M37) -> 320.9996033 | E7: 200 | F7: =AVERAGE(N7,N22,N37) -> 128.342057 | G7: =MAX(O7,O22,O37) -> 160.1786499 | J7: A1 | K7: Jan | L7: 133.1164774 | M7: 304.660553 | N7: 133.0568036 | O7: 154.3902588
A8: Feb | B8: 400 | C8: =AVERAGE(L8,L23,L38) -> 120.4586814 | D8: =MAX(M8,M23,M38) -> 291.0069885 | E8: 200 | F8: =AVERAGE(N8,N23,N38) -> 120.2284374 | G8: =MAX(O8,O23,O38) -> 161.7102661 | K8: Feb | L8: 138.5377939 | M8: 291.0069885 | N8: 138.3709321 | O8: 161.7102661
A9: Mar | B9: 400 | C9: 126.1302677 | D9: 336.2431946 | E9: 200 | F9: 76.82636921 | G9: 150.555603 | K9: Mar | L9: 148.3542018 | M9: 336.2431946 | N9: 0 | O9: 0 | Q9: Whole Installation table A5:G18:
A10: Apr | B10: 400 | C10: 115.9088437 | D10: 213.7767487 | E10: 200 | F10: 115.6990646 | G10: 152.6347504 | K10: Apr | L10: 113.0789707 | M10: 213.7767487 | N10: 112.4496335 | O10: 133.4193573 | Q10: Mean: for 1/2 hourly and daily periods calculate mean of values across all operational combustion lines for the month
A11: May | B11: 400 | C11: 121.1661073 | D11: 295.9251709 | E11: 200 | F11: 121.0773922 | G11: 154.8896179 | K11: May | L11: 116.0314683 | M11: 295.9251709 | N11: 116.0314676 | O11: 136.8541718
A12: Jun | B12: 400 | C12: 136.1508618 | D12: 311.5302124 | E12: 200 | F12: 135.4785379 | G12: 165.8664856 | K12: Jun | L12: 133.6799609 | M12: 299.2952576 | N12: 133.5559848 | O12: 146.2267303
A13: Jul | B13: 400 | C13: 139.4760877 | D13: 299.3078308 | E13: 200 | F13: 139.422453 | G13: 170.0470123 | K13: Jul | L13: 126.199047 | M13: 232.985199 | N13: 126.0381443 | O13: 144.4468079 | Q13: Maximum: for 1/2 hourly and daily periods use the highest value across all operational combustion lines for the month
A14: Aug | B14: 400 | C14: 139.7164761 | D14: 383.5377808 | E14: 200 | F14: 139.1113068 | G14: 165.0222931 | K14: Aug | L14: 127.9111971 | M14: 383.5377808 | N14: 126.0956894 | O14: 149.2050018
A15: Sep | B15: 400 | C15: 118.2050006 | D15: 330.1712036 | E15: 200 | F15: 117.570179 | G15: 152.9573975 | K15: Sep | L15: 103.3043392 | M15: 330.1712036 | N15: 101.401268 | O15: 119.8894653
A16: Oct | B16: 400 | C16: 120.4792958 | D16: 266.7393188 | E16: 200 | F16: 120.5740824 | G16: 159.728363 | K16: Oct | L16: 105.9069085 | M16: 266.7393188 | N16: 105.0419097 | O16: 135.0888214
A17: Nov | B17: 400 | C17: 122.7876497 | D17: 476.520752 | E17: 200 | F17: 119.2900259 | G17: 161.0168152 | K17: Nov | L17: 121.5006101 | M17: 259.5427856 | N17: 121.5006106 | O17: 134.5895233
A18: Dec | B18: 400 | C18: 122.5151647 | D18: 211.2567902 | E18: 180 | F18: 122.7447723 | G18: 161.2920227 | K18: Dec | L18: 112.6443219 | M18: 211.2567902 | N18: 112.6443213 | O18: 133.9963684
E19: * ELV reduced to 180 mg/Nm3 on 3 December 2023 | K19: Annual | L19: =AVERAGE(L7:L18) -> 123.3554414 | M19: =MAX(M7:M18) -> 383.5377808 | N19: =AVERAGE(N7:N18) -> 110.5155637 | O19: =MAX(O7:O18) -> 161.7102661
J21: =+A6 -> 2023 | K21: mg/Nm3 | L21: Monthly 1/2 hourly mean | M21: Monthly 1/2 hourly maximum | N21: Monthly daily mean | O21: Monthly daily maximum
J22: A2 | K22: Jan | L22: 135.1448616 | M22: 320.9996033 | N22: 134.7874265 | O22: 160.1786499
K23: Feb | L23: 116.5267658 | M23: 190.7606049 | N23: 115.8490891 | O23: 134.729599
K24: Mar | L24: 123.2294034 | M24: 306.2425537 | N24: 122.9123832 | O24: 150.555603
K25: Apr | L25: 134.7195235 | M25: 184.4093628 | N25: 134.7195231 | O25: 152.6347504
K26: May | L26: 141.0994677 | M26: 208.4594116 | N26: 141.0994676 | O26: 154.8896179
K27: Jun | L27: 152.3856323 | M27: 311.5302124 | N27: 152.3476268 | O27: 165.8664856
K28: Jul | L28: 152.5151886 | M28: 299.3078308 | N28: 152.5151869 | O28: 165.6107635
K29: Aug | L29: 151.9331265 | M29: 288.3574829 | N29: 151.9331261 | O29: 162.8030243
K30: Sep | L30: 139.3466881 | M30: 187.9827881 | N30: 139.3663319 | O30: 152.9573975
K31: Oct | L31: 134.1452974 | M31: 204.6647186 | N31: 134.0259295 | O31: 158.9740448
K32: Nov | L32: 144.6796609 | M32: 476.520752 | N32: 144.9029295 | O32: 161.0168152
K33: Dec | L33: 146.579753 | M33: 200.4532318 | N33: 146.5329653 | O33: 161.2920227
K34: Annual | L34: =AVERAGE(L22:L33) -> 139.3587807 | M34: =MAX(M22:M33) -> 476.520752 | N34: =AVERAGE(N22:N33) -> 139.2493321 | O34: =MAX(O22:O33) -> 165.8664856
J36: =+A6 -> 2023 | K36: mg/Nm3 | L36: Monthly 1/2 hourly mean | M36: Monthly 1/2 hourly maximum | N36: Monthly daily mean | O36: Monthly daily maximum
J37: A3 | K37: Jan | L37: 117.1819405 | M37: 299.4014282 | N37: 117.1819409 | O37: 141.6543427
K38: Feb | L38: 106.3114846 | M38: 160.008606 | N38: 106.4652909 | O38: 126.4789352
K39: Mar | L39: 106.8071979 | M39: 172.1199951 | N39: 107.5667245 | O39: 125.9437714
K40: Apr | L40: 99.92803679 | M40: 199.65242 | N40: 99.92803726 | O40: 114.4380798
K41: May | L41: 106.3673859 | M41: 189.439682 | N41: 106.1012413 | O41: 122.9164047
K42: Jun | L42: 122.3869921 | M42: 202.781311 | N42: 120.5320023 | O42: 161.5778198
K43: Jul | L43: 139.7140277 | M43: 225.1789551 | N43: 139.7140277 | O43: 170.0470123
K44: Aug | L44: 139.3051048 | M44: 261.3117065 | N44: 139.3051049 | O44: 165.0222931
K45: Sep | L45: 111.9639745 | M45: 186.103363 | N45: 111.942937 | O45: 139.52948
K46: Oct | L46: 121.3856813 | M46: 187.09198 | N46: 122.654408 | O46: 159.728363
K47: Nov | L47: 102.1826781 | M47: 184.937439 | N47: 91.46653748 | O47: 92.92609406
A48: Comments : | K48: Dec | L48: 108.3214194 | M48: 179.4963074 | N48: 109.0570304 | O48: 135.3835297
K49: Annual | L49: =AVERAGE(L37:L48) -> 115.1546603 | M49: =MAX(M37:M48) -> 299.4014282 | N49: =AVERAGE(N37:N48) -> 114.3262735 | O49: =MAX(O37:O48) -> 170.0470123
J51: =+A6 -> 2023 | K51: mg/Nm3 | L51: Monthly 1/2 hourly mean | M51: Monthly 1/2 hourly maximum | N51: Monthly daily mean | O51: Monthly daily maximum
J52: A4 | K52: Jan
K53: Feb
K54: Mar
K55: Apr
K56: May
K57: Jun
K58: Jul
K59: Aug
K60: Sep
K61: Oct
K62: Nov
K63: Dec
K64: Annual | L64: =AVERAGE(L52:L63) ->  | M64: =MAX(M52:M63) -> 0 | N64: =AVERAGE(N52:N63) ->  | O64: =MAX(O52:O63) -> 0
J66: =+A6 -> 2023 | K66: mg/Nm3 | L66: Monthly 1/2 hourly mean | M66: Monthly 1/2 hourly maximum | N66: Monthly daily mean | O66: Monthly daily maximum
J67: A5 | K67: Jan
K68: Feb
K69: Mar
K70: Apr
K71: May
K72: Jun
K73: Jul
K74: Aug
K75: Sep
K76: Oct
K77: Nov
K78: Dec
K79: Annual | L79: =AVERAGE(L67:L78) ->  | M79: =MAX(M67:M78) -> 0 | N79: =AVERAGE(N67:N78) ->  | O79: =MAX(O67:O78) -> 0

Sheet TOC
A1: =+'Cover Page'!$B$29 -> Annual Performance Report 2023 | E1: =+'Cover Page'!$B$33 -> Kent Enviropower Limited
A3: Monitoring of Total organic carbon emissions | D3: Whole Installation | G3: See Notes in Cell Q3 | J3: =+A3 -> Monitoring of Total organic carbon emissions | N3: Per Combustion Line | Q3: Notes:
Q4: User to add logic to complete Whole installation, Table A5:G18. From the data in Per Combustion Line, Table J6:O79, subject to No. of lines installed
A5: mg/Nm3 | B5: 1/2 Hourly Reference Periods | E5: Daily Reference Periods
A6: =+'Cover Page'!C39 -> 2023 | B6: 1/2 hourly TOC ELV | C6: Monthly 1/2 hourly mean | D6: Highest 1/2 hourly maximum | E6: Daily TOC ELV | F6: Monthly daily mean | G6: Highest daily maximum | J6: =+A6 -> 2023 | K6: mg/Nm3 | L6: Monthly 1/2 hourly mean | M6: Monthly 1/2 hourly maximum | N6: Monthly daily mean | O6: Monthly daily maximum
A7: Jan | B7: 10 | C7: =AVERAGE(L7,L22,L37) -> 0.4398711439 | D7: =MAX(M7,M22,M37) -> 345.9983826 | E7: 10 | F7: =AVERAGE(N7,N22,N37) -> 0.3174411074 | G7: =MAX(O7,O22,O37) -> 1.096748948 | J7: A1 | K7: Jan | L7: 0.6968926648 | M7: 345.9983826 | N7: 0.3399 | O7: 1.096748948
A8: Feb | B8: 10 | C8: =AVERAGE(L8,L23,L38) -> 0.5110327361 | D8: =MAX(M8,M23,M38) -> 213.5483704 | E8: 10 | F8: =AVERAGE(N8,N23,N38) -> 0.5064614386 | G8: =MAX(O8,O23,O38) -> 5.748392105 | K8: Feb | L8: 0.8931409835 | M8: 213.5483704 | N8: 0.8974632295 | O8: 5.748392105
A9: Mar | B9: 10 | C9: 0.4017665302 | D9: 48.29969025 | E9: 10 | F9: 0.2322531557 | G9: 1.270382047 | K9: Mar | L9: 0.5211958254 | M9: 2.773464918 | N9: 0 | O9: 0 | Q9: Whole Installation table A5:G18:
A10: Apr | B10: 10 | C10: 0.3293766371 | D10: 20.12035179 | E10: 10 | F10: 0.3287530469 | G10: 1.286088943 | K10: Apr | L10: 0.3113659451 | M10: 2.077167034 | N10: 0.3094952091 | O10: 0.3807590008 | Q10: Mean: for 1/2 hourly and daily periods calculate mean of values across all operational combustion lines for the month
A11: May | B11: 10 | C11: 0.3613632982 | D11: 45.33275604 | E11: 10 | F11: 0.3620665195 | G11: 1.317450047 | K11: May | L11: 0.3680719497 | M11: 45.33275604 | N11: 0.3680636162 | O11: 1.317450047
A12: Jun | B12: 10 | C12: 0.3732986241 | D12: 23.79590607 | E12: 10 | F12: 0.3558326533 | G12: 1.003443956 | K12: Jun | L12: 0.3470627979 | M12: 6.612418175 | N12: 0.3442208469 | O12: 0.6010469794
A13: Jul | B13: 10 | C13: 0.3945926268 | D13: 29.13339615 | E13: 10 | F13: 0.3925568413 | G13: 2.183098078 | K13: Jul | L13: 0.3730171091 | M13: 7.68589592 | N13: 0.36690965 | O13: 0.4740509987 | Q13: Maximum: for 1/2 hourly and daily periods use the highest value across all operational combustion lines for the month
A14: Aug | B14: 10 | C14: 0.4570145304 | D14: 40.8051796 | E14: 10 | F14: 0.4475634449 | G14: 1.857241035 | K14: Aug | L14: 0.3678156506 | M14: 10.18900108 | N14: 0.3394572039 | O14: 0.3797410131
A15: Sep | B15: 10 | C15: 0.4136751847 | D15: 24.93683052 | E15: 10 | F15: 0.376274271 | G15: 1.530833006 | K15: Sep | L15: 0.5035700394 | M15: 24.93683052 | N15: 0.4377991786 | O15: 1.477764964
A16: Oct | B16: 10 | C16: 0.4128908296 | D16: 19.95345116 | E16: 10 | F16: 0.393139053 | G16: 0.8814430237 | K16: Oct | L16: 0.408195458 | M16: 9.367882729 | N16: 0.3976496492 | O16: 0.672007978
A17: Nov | B17: 10 | C17: 0.3249627019 | D17: 11.76979542 | E17: 10 | F17: 0.3142911282 | G17: 0.5393739939 | K17: Nov | L17: 0.2782601228 | M17: 3.731235027 | N17: 0.2782601674 | O17: 0.4438689947
A18: Dec | B18: 10 | C18: 0.2579692468 | D18: 9.638772011 | E18: 10 | F18: 0.2575065207 | G18: 0.4658080041 | K18: Dec | L18: 0.2845623367 | M18: 9.638772011 | N18: 0.2845623229 | O18: 0.4658080041
K19: Annual | L19: =AVERAGE(L7:L18) -> 0.4460959069 | M19: =MAX(M7:M18) -> 345.9983826 | N19: =AVERAGE(N7:N18) -> 0.3636484228 | O19: =MAX(O7:O18) -> 5.748392105
J21: =+A6 -> 2023 | K21: mg/Nm3 | L21: Monthly 1/2 hourly mean | M21: Monthly 1/2 hourly maximum | N21: Monthly daily mean | O21: Monthly daily maximum
J22: A2 | K22: Jan | L22: 0.2467974983 | M22: 9.12823391 | N22: 0.2365 | O22: 0.432193011
K23: Feb | L23: 0.3239922549 | M23: 7.745592117 | N23: 0.3093321284 | O23: 0.5529080033
K24: Mar | L24: 0.3330100646 | M24: 48.29969025 | N24: 0.3379569628 | O24: 1.270382047
K25: Apr | L25: 0.2902468285 | M25: 19.30792618 | N25: 0.2902467685 | O25: 0.995445013
K26: May | L26: 0.2845542918 | M26: 29.59514236 | N26: 0.2845456783 | O26: 1.010244012
K27: Jun | L27: 0.3715243418 | M27: 23.79590607 | N27: 0.3410870426 | O27: 1.003443956
K28: Jul | L28: 0.2891888806 | M28: 8.557449341 | N28: 0.2891888715 | O28: 0.4819589853
K29: Aug | L29: 0.3299197 | M29: 37.52798462 | N29: 0.3299249026 | O29: 1.004287958
K30: Sep | L30: 0.406692851 | M30: 18.16869354 | N30: 0.359638814 | O30: 1.530833006
K31: Oct | L31: 0.306666243 | M31: 12.21024704 | N31: 0.3028088447 | O31: 0.8476909995
K32: Nov | L32: 0.2442896013 | M32: 11.76979542 | N32: 0.2306662202 | O32: 0.5393739939
K33: Dec | L33: 0.1817288528 | M33: 4.679355145 | N33: 0.180982413 | O33: 0.2815020084
K34: Annual | L34: =AVERAGE(L22:L33) -> 0.3007176174 | M34: =MAX(M22:M33) -> 48.29969025 | N34: =AVERAGE(N22:N33) -> 0.2910732205 | O34: =MAX(O22:O33) -> 1.530833006
J36: =+A6 -> 2023 | K36: mg/Nm3 | L36: Monthly 1/2 hourly mean | M36: Monthly 1/2 hourly maximum | N36: Monthly daily mean | O36: Monthly daily maximum
J37: A3 | K37: Jan | L37: 0.3759232685 | M37: 14.80586624 | N37: 0.3759233221 | O37: 0.8292409778
K38: Feb | L38: 0.31596497 | M38: 1.871091008 | N38: 0.312588958 | O38: 0.4146459997
K39: Mar | L39: 0.3510937007 | M39: 9.448188782 | N39: 0.3588025042 | O39: 0.6074010134
K40: Apr | L40: 0.3865171377 | M40: 20.12035179 | N40: 0.3865171631 | O40: 1.286088943
K41: May | L41: 0.4314636531 | M41: 4.264610767 | N41: 0.4335902641 | O41: 0.6724550128
K42: Jun | L42: 0.4013087326 | M42: 3.742973089 | N42: 0.3821900705 | O42: 0.5818600059
K43: Jul | L43: 0.5215718909 | M43: 29.13339615 | N43: 0.5215720025 | O43: 2.183098078
K44: Aug | L44: 0.6733082407 | M44: 40.8051796 | N44: 0.6733082283 | O44: 1.857241035
K45: Sep | L45: 0.3307626637 | M45: 8.084017754 | N45: 0.3313848205 | O45: 0.6397989988
K46: Oct | L46: 0.5238107878 | M46: 19.95345116 | N46: 0.4789586649 | O46: 0.8814430237
K47: Nov | L47: 0.4523383815 | M47: 1.296823978 | N47: 0.4339469969 | O47: 0.4600130022
A48: Comments : | K48: Dec | L48: 0.3076165509 | M48: 3.081175089 | N48: 0.3069748263 | O48: 0.4332590103
K49: Annual | L49: =AVERAGE(L37:L48) -> 0.4226399982 | M49: =MAX(M37:M48) -> 40.8051796 | N49: =AVERAGE(N37:N48) -> 0.4163131518 | O49: =MAX(O37:O48) -> 2.183098078
J51: =+A6 -> 2023 | K51: mg/Nm3 | L51: Monthly 1/2 hourly mean | M51: Monthly 1/2 hourly maximum | N51: Monthly daily mean | O51: Monthly daily maximum
J52: A4 | K52: Jan
K53: Feb
K54: Mar
K55: Apr
K56: May
K57: Jun
K58: Jul
K59: Aug
K60: Sep
K61: Oct
K62: Nov
K63: Dec
K64: Annual | L64: =AVERAGE(L52:L63) ->  | M64: =MAX(M52:M63) -> 0 | N64: =AVERAGE(N52:N63) ->  | O64: =MAX(O52:O63) -> 0
J66: =+A6 -> 2023 | K66: mg/Nm3 | L66: Monthly 1/2 hourly mean | M66: Monthly 1/2 hourly maximum | N66: Monthly daily mean | O66: Monthly daily maximum
J67: A5 | K67: Jan
K68: Feb
K69: Mar
K70: Apr
K71: May
K72: Jun
K73: Jul
K74: Aug
K75: Sep
K76: Oct
K77: Nov
K78: Dec
K79: Annual | L79: =AVERAGE(L67:L78) ->  | M79: =MAX(M67:M78) -> 0 | N79: =AVERAGE(N67:N78) ->  | O79: =MAX(O67:O78) -> 0

Sheet Particulates
A1: =+'Cover Page'!$B$29 -> Annual Performance Report 2023 | E1: =+'Cover Page'!$B$33 -> Kent Enviropower Limited
A3: Monitoring of Particulate matter emissions | D3: Whole Installation | G3: See Notes in Cell Q3 | J3: =+A3 -> Monitoring of Particulate matter emissions | N3: Per Combustion Line | Q3: Notes:
Q4: User to add logic to complete Whole installation, Table A5:G18. From the data in Per Combustion Line, Table J6:O79, subject to No. of lines installed
A5: mg/Nm3 | B5: 1/2 Hourly Reference Periods | E5: Daily Reference Periods
A6: =+'Cover Page'!C39 -> 2023 | B6: 1/2 hourly PM ELV | C6: Monthly 1/2 hourly mean | D6: Highest 1/2 hourly maximum | E6: Daily PM ELV* | F6: Monthly daily mean | G6: Highest daily maximum | J6: =+A6 -> 2023 | K6: mg/Nm3 | L6: Monthly 1/2 hourly mean | M6: Monthly 1/2 hourly maximum | N6: Monthly daily mean | O6: Monthly daily maximum
A7: Jan | B7: 30 | C7: =AVERAGE(L7,L22,L37) -> 1.169196152 | D7: =MAX(M7,M22,M37) -> 5.919792175 | E7: 10 | F7: =AVERAGE(N7,N22,N37) -> 1.157566667 | G7: =MAX(O7,O22,O37) -> 3.50881505 | J7: A1 | K7: Jan | L7: 1.3878627 | M7: 5.919792175 | N7: 1.374 | O7: 3.50881505
A8: Feb | B8: 30 | C8: =AVERAGE(L8,L23,L38) -> 2.291456494 | D8: =MAX(M8,M23,M38) -> 17.73191452 | E8: 10 | F8: =AVERAGE(N8,N23,N38) -> 2.288771495 | G8: =MAX(O8,O23,O38) -> 9.456481934 | K8: Feb | L8: 3.807082126 | M8: 17.73191452 | N8: 3.816562997 | O8: 9.456481934
A9: Mar | B9: 30 | C9: 6.175602483 | D9: 25.99516296 | E9: 10 | F9: 1.628680627 | G9: 3.85787797 | K9: Mar | L9: 13.67504096 | M9: 25.99516296 | N9: 0 | O9: 0 | Q9: Whole Installation table A5:G18:
A10: Apr | B10: 30 | C10: 2.491585415 | D10: 7.393579006 | E10: 10 | F10: 2.491849567 | G10: 4.171675205 | K10: Apr | L10: 1.835870093 | M10: 4.70002985 | N10: 1.836662484 | O10: 3.760611057 | Q10: Mean: for 1/2 hourly and daily periods calculate mean of values across all operational combustion lines for the month
A11: May | B11: 30 | C11: 2.093285577 | D11: 7.637937069 | E11: 10 | F11: 2.092485918 | G11: 4.203918934 | K11: May | L11: 1.162451194 | M11: 6.810297966 | N11: 1.162451256 | O11: 2.734249115
A12: Jun | B12: 30 | C12: 2.382670152 | D12: 10.56764126 | E12: 10 | F12: 2.3574637 | G12: 4.438395977 | K12: Jun | L12: 1.324671261 | M12: 10.56764126 | N12: 1.310481833 | O12: 4.438395977
A13: Jul | B13: 30 | C13: 2.480333592 | D13: 5.861924171 | E13: 10 | F13: 2.455867094 | G13: 4.380617142 | K13: Jul | L13: 2.086079542 | M13: 5.861924171 | N13: 2.01268 | O13: 2.741630077 | Q13: Maximum: for 1/2 hourly and daily periods use the highest value across all operational combustion lines for the month
A14: Aug | B14: 30 | C14: 2.886945931 | D14: 8.034959793 | E14: 10 | F14: 2.891621496 | G14: 6.238204956 | K14: Aug | L14: 2.011114931 | M14: 5.044576168 | N14: 2.025130479 | O14: 3.970168114
A15: Sep | B15: 30 | C15: 2.854389858 | D15: 11.32464314 | E15: 10 | F15: 2.880575568 | G15: 6.821818829 | K15: Sep | L15: 2.622203306 | M15: 11.32464314 | N15: 2.664421407 | O15: 5.06866312
A16: Oct | B16: 30 | C16: 2.068151921 | D16: 12.98017693 | E16: 10 | F16: 2.086019261 | G16: 3.978293896 | K16: Oct | L16: 2.285338702 | M16: 12.98017693 | N16: 2.300857984 | O16: 3.978293896
A17: Nov | B17: 30 | C17: 2.5032265 | D17: 11.36525917 | E17: 10 | F17: 2.544632986 | G17: 4.680021763 | K17: Nov | L17: 2.135295219 | M17: 11.36525917 | N17: 2.135295208 | O17: 4.680021763
A18: Dec | B18: 30 | C18: 2.542029846 | D18: 7.626215935 | E18: 5 | F18: 2.534478903 | G18: 4.423902035 | K18: Dec | L18: 2.222331032 | M18: 6.868587017 | N18: 2.222330912 | O18: 3.677983046
E19: * ELV reduced to 5 mg/Nm3 on 3 December 2023 | K19: Annual | L19: =AVERAGE(L7:L18) -> 3.046278422 | M19: =MAX(M7:M18) -> 25.99516296 | N19: =AVERAGE(N7:N18) -> 1.90507288 | O19: =MAX(O7:O18) -> 9.456481934
J21: =+A6 -> 2023 | K21: mg/Nm3 | L21: Monthly 1/2 hourly mean | M21: Monthly 1/2 hourly maximum | N21: Monthly daily mean | O21: Monthly daily maximum
J22: A2 | K22: Jan | L22: 1.10017291 | M22: 5.647427082 | N22: 1.0791 | O22: 1.246971965
K23: Feb | L23: 1.56462862 | M23: 3.862438917 | N23: 1.549656876 | O23: 2.054402113
K24: Mar | L24: 2.442275349 | M24: 4.431860924 | N24: 2.480115807 | O24: 3.85787797
K25: Apr | L25: 2.237993005 | M25: 7.393579006 | N25: 2.237993054 | O25: 3.722420931
K26: May | L26: 1.900685046 | M26: 4.329534054 | N26: 1.90067069 | O26: 3.054038048
K27: Jun | L27: 2.917817184 | M27: 6.551144123 | N27: 2.90682642 | O27: 3.903667927
K28: Jul | L28: 2.538708296 | M28: 5.853208065 | N28: 2.538708283 | O28: 4.019214153
K29: Aug | L29: 2.431164542 | M29: 5.911183834 | N29: 2.431175643 | O29: 3.141134024
K30: Sep | L30: 3.071432336 | M30: 7.039546967 | N30: 3.071704825 | O30: 4.126410007
K31: Oct | L31: 1.263761588 | M31: 8.314645767 | N31: 1.223728939 | O31: 2.566468
K32: Nov | L32: 2.538352886 | M32: 6.573622227 | N32: 2.584127236 | O32: 3.656783104
K33: Dec | L33: 2.777490733 | M33: 7.013249874 | N33: 2.763154211 | O33: 3.551486969
K34: Annual | L34: =AVERAGE(L22:L33) -> 2.232040208 | M34: =MAX(M22:M33) -> 8.314645767 | N34: =AVERAGE(N22:N33) -> 2.230580165 | O34: =MAX(O22:O33) -> 4.126410007
J36: =+A6 -> 2023 | K36: mg/Nm3 | L36: Monthly 1/2 hourly mean | M36: Monthly 1/2 hourly maximum | N36: Monthly daily mean | O36: Monthly daily maximum
J37: A3 | K37: Jan | L37: 1.019552847 | M37: 1.507809997 | N37: 1.0196 | O37: 1.250077963
K38: Feb | L38: 1.502658737 | M38: 4.142953873 | N38: 1.500094611 | O38: 2.095432997
K39: Mar | L39: 2.40949114 | M39: 5.680112839 | N39: 2.405926074 | O39: 3.486171007
K40: Apr | L40: 3.400893148 | M40: 6.59108305 | N40: 3.400893164 | O40: 4.171675205
K41: May | L41: 3.21672049 | M41: 7.637937069 | N41: 3.214335807 | O41: 4.203918934
K42: Jun | L42: 2.905522012 | M42: 6.636407852 | N42: 2.855082846 | O42: 3.635906935
K43: Jul | L43: 2.816212939 | M43: 5.096814156 | N43: 2.816213 | O43: 4.380617142
K44: Aug | L44: 4.218558321 | M44: 8.034959793 | N44: 4.218558365 | O44: 6.238204956
K45: Sep | L45: 2.869533931 | M45: 11.21144676 | N45: 2.905600471 | O45: 6.821818829
K46: Oct | L46: 2.655355474 | M46: 4.969659805 | N46: 2.73347086 | O46: 3.286623001
K47: Nov | L47: 2.836031397 | M47: 5.331380844 | N47: 2.914476514 | O47: 3.1070261
A48: Comments : | K48: Dec | L48: 2.626267774 | M48: 7.626215935 | N48: 2.617951585 | O48: 4.423902035
K49: Annual | L49: =AVERAGE(L37:L48) -> 2.706399851 | M49: =MAX(M37:M48) -> 11.21144676 | N49: =AVERAGE(N37:N48) -> 2.716850275 | O49: =MAX(O37:O48) -> 6.821818829
J51: =+A6 -> 2023 | K51: mg/Nm3 | L51: Monthly 1/2 hourly mean | M51: Monthly 1/2 hourly maximum | N51: Monthly daily mean | O51: Monthly daily maximum
J52: A4 | K52: Jan
K53: Feb
K54: Mar
K55: Apr
K56: May
K57: Jun
K58: Jul
K59: Aug
K60: Sep
K61: Oct
K62: Nov
K63: Dec
K64: Annual | L64: =AVERAGE(L52:L63) ->  | M64: =MAX(M52:M63) -> 0 | N64: =AVERAGE(N52:N63) ->  | O64: =MAX(O52:O63) -> 0
J66: =+A6 -> 2023 | K66: mg/Nm3 | L66: Monthly 1/2 hourly mean | M66: Monthly 1/2 hourly maximum | N66: Monthly daily mean | O66: Monthly daily maximum
J67: A5 | K67: Jan
K68: Feb
K69: Mar
K70: Apr
K71: May
K72: Jun
K73: Jul
K74: Aug
K75: Sep
K76: Oct
K77: Nov
K78: Dec
K79: Annual | L79: =AVERAGE(L67:L78) ->  | M79: =MAX(M67:M78) -> 0 | N79: =AVERAGE(N67:N78) ->  | O79: =MAX(O67:O78) -> 0

Sheet CO 95% 10 min
A1: =+'Cover Page'!$B$29 -> Annual Performance Report 2023 | E1: =+'Cover Page'!$B$33 -> Kent Enviropower Limited
A3: Monitoring of Carbon Monoxide (10-minute avg) | E3: Whole Installation | H3: See Notes in Cell S3 | J3: =+A3 -> Monitoring of Carbon Monoxide (10-minute avg) | O3: Per Combustion Line | Q3: Notes: | S3: Notes:
A5: Please complete this tab for your plant if you have 10-minute average CO ELVs; otherwise, leave it blank and complete the CO 0.5 hourly tab
S7: User to add logic to complete Whole installation, Table A5:H18. From the data in Per Combustion Line, Table K6:Q79, subject to No. of lines installed
A8: mg/Nm3 | B8: 10-minute Reference Periods | F8: Daily Reference Periods
A9: =+'Cover Page'!C39 -> 2023 | B9: 95%ile 10-min avg CO ELV | C9: 95%ile 10-min avg maximum | D9: Monthly CO 10-min avg mean | E9: 10-min avg maximum | F9: Daily CO ELV | G9: Monthly daily mean | H9: Highest daily maximum | K9: =+A9 -> 2023 | L9: mg/Nm3 | M9: 95%ile 10-min avg maximum | N9: Monthly CO 10-min avg mean | O9: 10-min avg maximum | P9: Monthly daily mean | Q9: Monthly daily maximum
A10: Jan | B10: 150 | C10: =MAX(M10,M25,M40) -> 22.01234245 | D10: =AVERAGE(N10,N25,N40) -> 4.751817441 | E10: =MAX(O10,O25,O40) -> 12713.8584 | F10: 50 | G10: =AVERAGE(P10,P25,P40) -> 2.629429714 | H10: =MAX(Q10,Q25,Q40) -> 12.74939537 | K10: A1 | L10: Jan | M10: 0.8396499753 | N10: 8.169393987 | O10: 12713.8584 | P10: 2.418027173 | Q10: 12.74939537
A11: Feb | B11: =+B10 -> 150 | C11: =MAX(M11,M26,M41) -> 17.90701866 | D11: =AVERAGE(N11,N26,N41) -> 5.505301511 | E11: =MAX(O11,O26,O41) -> 6413.892578 | F11: =+F10 -> 50 | G11: =AVERAGE(P11,P26,P41) -> 4.296873166 | H11: =MAX(Q11,Q26,Q41) -> 46.08336639 | L11: Feb | M11: 5.471651077 | N11: 11.31491752 | O11: 6413.892578 | P11: 8.238275931 | Q11: 46.08336639
A12: Mar | B12: =+B11 -> 150 | C12: 14.82138538 | D12: 4.412019053 | E12: 1670.285156 | F12: =+F11 -> 50 | G12: 2.142803178 | H12: 15.74785805 | L12: Mar | M12: 14.82138538 | N12: 7.251570725 | O12: 602.8010254 | P12: 0 | Q12: 0 | S12: Whole Installation table A5:H18:
A13: Apr | B13: 150 | C13: 21.27781868 | D13: 2.233105302 | E13: 570.9550781 | F13: 50 | G13: 2.233222886 | H13: 19.44257545 | L13: Apr | M13: 0.2136150002 | N13: 0.4960689185 | O13: 146.2360382 | P13: 0.4964216873 | Q13: 1.789906979 | S13: Mean: for 10-min and daily periods use average of all operational combustion lines.
A14: May | B14: 150 | C14: 35.76884079 | D14: 4.045436113 | E14: 1428.290771 | F14: 50 | G14: 4.073056676 | H14: 15.25699711 | L14: May | M14: 1.703446031 | N14: 1.842671347 | O14: 1428.290771 | P14: 1.842671249 | Q14: 11.4557066
A15: Jun | B15: 150 | C15: 24.19151306 | D15: 3.419246628 | E15: 1593.843628 | F15: 50 | G15: 3.027391293 | H15: 22.60973167 | L15: Jun | M15: 1.310938954 | N15: 1.463575295 | O15: 452.5560608 | P15: 1.420810153 | Q15: 7.617257118
A16: Jul | B16: 150 | C16: 22.27656746 | D16: 3.007639303 | E16: 996.6467896 | F16: 50 | G16: 2.971839764 | H16: 14.58746433 | L16: Jul | M16: 2.289470911 | N16: 2.073314386 | O16: 996.6467896 | P16: 1.965915841 | Q16: 8.432614326 | S16: Maximum: for 10-min and daily periods use the highest of all operational combustion lines in any month.
A17: Aug | B17: 150 | C17: 24.76328659 | D17: 2.85667537 | E17: 1317.2323 | F17: 50 | G17: 2.727948745 | H17: 23.41312599 | L17: Aug | M17: 0.3370589912 | N17: 0.8360430593 | O17: 579.2049561 | P17: 0.4498631947 | Q17: 1.233541012
A18: Sep | B18: 150 | C18: 25.70679283 | D18: 4.951920374 | E18: 1809.609863 | F18: 50 | G18: 4.24148137 | H18: 36.13436127 | L18: Sep | M18: 25.70679283 | N18: 7.822596709 | O18: 1809.609863 | P18: 6.229238283 | Q18: 36.13436127
A19: Oct | B19: 150 | C19: 27.07410622 | D19: 4.315854665 | E19: 1525.453613 | F19: 50 | G19: 3.6848178 | H19: 18.89454651 | L19: Oct | M19: 4.498491764 | N19: 2.638754541 | O19: 546.7595215 | P19: 2.342241972 | Q19: 9.298716545
A20: Nov | B20: 150 | C20: 31.15229607 | D20: 2.84769603 | E20: 977.5943604 | F20: 50 | G20: 2.941608141 | H20: 11.71393108 | L20: Nov | M20: 0.4373599887 | N20: 0.8234304895 | O20: 258.1353455 | P20: 0.8230815123 | Q20: 5.057854176
A21: Dec | B21: 150 | C21: 7.302425861 | D21: 1.564217834 | E21: 521.6342773 | F21: 50 | G21: 1.553799047 | H21: 9.826891899 | L21: Dec | M21: 2.621197939 | N21: 1.522744837 | O21: 344.571167 | P21: 1.521384164 | Q21: 4.117679119
L22: Annual | M22: =AVERAGE(M10:M21) -> 5.020921571 | N22: =AVERAGE(N10:N21) -> 3.854590151 | O22: =MAX(O10:O21) -> 12713.8584 | P22: =AVERAGE(P10:P21) -> 2.312327597 | Q22: =MAX(Q10:Q21) -> 46.08336639
K24: =+A9 -> 2023 | L24: mg/Nm3 | M24: 95%ile 10-min avg maximum | N24: Monthly CO 10-min avg mean | O24: 10-min avg maximum | P24: Monthly daily mean | Q24: Monthly daily maximum
K25: A2 | L25: Jan | M25: 1.041290998 | N25: 2.050360676 | O25: 635.9579468 | P25: 1.434564289 | Q25: 6.922025204
L26: Feb | M26: 1.914818048 | N26: 1.768941393 | O26: 815.7974243 | P26: 1.266934269 | Q26: 4.04391098
L27: Mar | M27: 2.629729033 | N27: 2.294565092 | O27: 1670.285156 | P27: 2.428086436 | Q27: 13.63221073
L28: Apr | M28: 4.259860992 | N28: 2.080386214 | O28: 489.7185974 | P28: 2.080386125 | Q28: 11.57186222
L29: May | M29: 9.50383091 | N29: 3.050887464 | O29: 578.8342285 | P29: 3.050882848 | Q29: 10.01588726
L30: Jun | M30: 5.21337986 | N30: 3.638752978 | O30: 1593.843628 | P30: 3.24587135 | Q30: 22.60973167
L31: Jul | M31: 3.30053091 | N31: 2.095373732 | O31: 797.8654785 | P31: 2.095373744 | Q31: 7.429151058
L32: Aug | M32: 1.602462053 | N32: 1.698058383 | O32: 633.9248657 | P32: 1.698058312 | Q32: 10.77239418
L33: Sep | M33: 12.55809689 | N33: 3.544256955 | O33: 533.5806885 | P33: 2.994129607 | Q33: 16.1948185
L34: Oct | M34: 4.533131123 | N34: 2.475884789 | O34: 446.8095703 | P34: 2.435922829 | Q34: 11.91313457
L35: Nov | M35: 3.053755999 | N35: 2.005030612 | O35: 977.5943604 | P35: 1.687738966 | Q35: 11.71393108
L36: Dec | M36: 0.2306410074 | N36: 0.7209265662 | O36: 309.2051392 | P36: 0.6575794151 | Q36: 3.442589998
L37: Annual | M37: =AVERAGE(M25:M36) -> 4.153460652 | N37: =AVERAGE(N25:N36) -> 2.285285404 | O37: =MAX(O25:O36) -> 1670.285156 | P37: =AVERAGE(P25:P36) -> 2.089627349 | Q37: =MAX(Q25:Q36) -> 22.60973167
K39: =+A9 -> 2023 | L39: mg/Nm3 | M39: 95%ile 10-min avg maximum | N39: Monthly CO 10-min avg mean | O39: 10-min avg maximum | P39: Monthly daily mean | Q39: Monthly daily maximum
K40: A3 | L40: Jan | M40: 22.01234245 | N40: 4.035697661 | O40: 337.6708069 | P40: 4.03569768 | Q40: 10.44020271
L41: Feb | M41: 17.90701866 | N41: 3.432045624 | O41: 395.3151245 | P41: 3.385409298 | Q41: 8.430751801
L42: Mar | M42: 12.35416985 | N42: 3.689921343 | O42: 1036.016235 | P42: 4.000323099 | Q42: 15.74785805
L43: Apr | M43: 21.27781868 | N43: 4.122860774 | O43: 570.9550781 | P43: 4.122860845 | Q43: 19.44257545
L44: May | M44: 35.76884079 | N44: 7.242749526 | O44: 804.1888428 | P44: 7.325615931 | Q44: 15.25699711
L45: Jun | M45: 24.19151306 | N45: 5.155411611 | O45: 396.6795044 | P45: 4.415492376 | Q45: 7.756298065
L46: Jul | M46: 22.27656746 | N46: 4.85422979 | O46: 507.9751282 | P46: 4.854229708 | Q46: 14.58746433
L47: Aug | M47: 24.76328659 | N47: 6.035924668 | O47: 1317.2323 | P47: 6.035924727 | Q47: 23.41312599
L48: Sep | M48: 14.40341759 | N48: 3.488907457 | O48: 1464.526367 | P48: 3.501076222 | Q48: 18.8374958
L49: Oct | M49: 27.07410622 | N49: 7.832924663 | O49: 1525.453613 | P49: 6.276288601 | Q49: 18.89454651
L50: Nov | M50: 31.15229607 | N50: 5.71462699 | O50: 324.4465332 | P50: 6.314003944 | Q50: 9.98388195
A51: Comments : | L51: Dec | M51: 7.302425861 | N51: 2.448982099 | O51: 521.6342773 | P51: 2.482433563 | Q51: 9.826891899
A52: Environment Agency explanatory note: The 10-minute average ELV is based on the “95th percentile”. In this case this means that 95% of the 10 minute averages in the relevant 24-hour period (i.e. 137) must be below 150 mg/Nm3, and 5% (i.e. 7) are allowed to be any value above 150 mg/Nm3. Whilst we expect operators to minimise CO emissions at all times, it is perfectly acceptable for the value of the maximum 10-minute average to be above 150 mg/Nm3, provided the 95th percentile ELV has been met for that period. | L52: Annual | M52: =AVERAGE(M40:M51) -> 21.70698361 | N52: =AVERAGE(N40:N51) -> 4.837856851 | O52: =MAX(O40:O51) -> 1525.453613 | P52: =AVERAGE(P40:P51) -> 4.729113 | Q52: =MAX(Q40:Q51) -> 23.41312599
K54: =+A9 -> 2023 | L54: mg/Nm3 | M54: 95%ile 10-min avg maximum | N54: Monthly CO 10-min avg mean | O54: 10-min avg maximum | P54: Monthly daily mean | Q54: Monthly daily maximum
K55: A4 | L55: Jan
L56: Feb
L57: Mar
L58: Apr
L59: May
L60: Jun
L61: Jul
L62: Aug
L63: Sep
L64: Oct
L65: Nov
L66: Dec
L67: Annual | M67: =AVERAGE(M55:M66) ->  | O67: =MAX(O55:O66) -> 0 | P67: =AVERAGE(P55:P66) ->  | Q67: =MAX(Q55:Q66) -> 0
K69: =+A9 -> 2023 | L69: mg/Nm3 | M69: 95%ile 10-min avg maximum | N69: Monthly CO 10-min avg mean | O69: 10-min avg maximum | P69: Monthly daily mean | Q69: Monthly daily maximum
K70: A5 | L70: Jan
L71: Feb
L72: Mar
L73: Apr
L74: May
L75: Jun
L76: Jul
L77: Aug
L78: Sep
L79: Oct
L80: Nov
L81: Dec
L82: Annual | M82: =AVERAGE(M70:M81) ->  | O82: =MAX(O70:O81) -> 0 | P82: =AVERAGE(P70:P81) ->  | Q82: =MAX(Q70:Q81) -> 0

Sheet NH3
A1: =+'Cover Page'!$B$29 -> Annual Performance Report 2023 | E1: =+'Cover Page'!$B$33 -> Kent Enviropower Limited
A3: Monitoring of Ammnonia emissions | D3: Whole Installation | G3: See Notes in Cell Q3 | J3: =+A3 -> Monitoring of Ammnonia emissions | N3: Per Combustion Line | Q3: Notes:
Q4: User to add logic to complete Whole installation, Table A5:G18. From the data in Per Combustion Line, Table J6:O79, subject to No. of lines installed
A5: mg/Nm3 | B5: 1/2 Hourly Reference Periods | E5: Daily Reference Periods
A6: =+'Cover Page'!C39 -> 2023 | B6: 1/2 hourly NH3 ELV | C6: Monthly 1/2 hourly mean | D6: Highest 1/2 hourly maximum | E6: Daily NH3 ELV* | F6: Monthly daily mean | G6: Highest daily maximum | J6: =+A6 -> 2023 | K6: mg/Nm3 | L6: Monthly 1/2 hourly mean | M6: Monthly 1/2 hourly maximum | N6: Monthly daily mean | O6: Monthly daily maximum
A7: Jan | B7: None | C7: =AVERAGE(L7,L22,L37) -> 0.1047148765 | D7: =MAX(M7,M22,M37) -> 37.15512848 | E7: 10 | F7: =AVERAGE(N7,N22,N37) -> 0.08180420865 | G7: =MAX(O7,O22,O37) -> 0.3305270076 | J7: A1 | K7: Jan | L7: 0.1092958423 | M7: 37.15512848 | N7: 0.04906410753 | O7: 0.2543469965
A8: Feb | B8: =+B7 -> None | C8: =AVERAGE(L8,L23,L38) -> 0.1043766498 | D8: =MAX(M8,M23,M38) -> 19.27510643 | E8: 10 | F8: =AVERAGE(N8,N23,N38) -> 0.1022785016 | G8: =MAX(O8,O23,O38) -> 0.6978179812 | K8: Feb | L8: 0.133071309 | M8: 19.27510643 | N8: 0.1310577781 | O8: 0.6978179812
A9: Mar | B9: =+B8 -> None | C9: 0.08007146768 | D9: 5.536344051 | E9: 10 | F9: 0.06641833707 | G9: 0.4229960144 | K9: Mar | L9: 0.04859493433 | M9: 0.4382869899 | N9: 0 | O9: 0 | Q9: Whole Installation table A5:G18:
A10: Apr | B10: None | C10: 0.09575235178 | D10: 3.880852938 | E10: 10 | F10: 0.09575764025 | G10: 0.6933739781 | K10: Apr | L10: 0.03681186709 | M10: 0.7233470082 | N10: 0.03682778915 | O10: 0.0658069998 | Q10: Mean: for 1/2 hourly and daily periods calculate mean of values across all operational combustion lines for the month
A11: May | B11: None | C11: 0.1519994874 | D11: 4.923566818 | E11: 10 | F11: 0.1531243542 | G11: 0.5952469707 | K11: May | L11: 0.05703619351 | M11: 4.923566818 | N11: 0.05703616091 | O11: 0.2218019962
A12: Jun | B12: None | C12: 0.1174658517 | D12: 14.73357677 | E12: 10 | F12: 0.1086629416 | G12: 0.5421429873 | K12: Jun | L12: 0.03817659639 | M12: 0.8383820057 | N12: 0.03731484611 | O12: 0.118332997
A13: Jul | B13: None | C13: 0.1038407671 | D13: 3.221029043 | E13: 10 | F13: 0.1035555198 | G13: 0.3822239935 | K13: Jul | L13: 0.03723610096 | M13: 1.595178008 | N13: 0.03638039995 | O13: 0.08835399896 | Q13: Maximum: for 1/2 hourly and daily periods use the highest value across all operational combustion lines for the month
A14: Aug | B14: None | C14: 0.0968649938 | D14: 5.061751842 | E14: 10 | F14: 0.09592956904 | G14: 0.51661098 | K14: Aug | L14: 0.01996856476 | M14: 1.058485031 | N14: 0.01716286684 | O14: 0.04658700153
A15: Sep | B15: None | C15: 0.1262158056 | D15: 8.59414196 | E15: 10 | F15: 0.110952448 | G15: 0.5630779862 | K15: Sep | L15: 0.1316237389 | M15: 2.812707901 | N15: 0.09997518056 | O15: 0.3377949893
A16: Oct | B16: None | C16: 0.1204565121 | D16: 12.51160526 | E16: 10 | F16: 0.1076900179 | G16: 0.4525490105 | K16: Oct | L16: 0.0597409382 | M16: 1.773553967 | N16: 0.0562078461 | O16: 0.2149049938
A17: Nov | B17: None | C17: 0.09563351422 | D17: 1.550529957 | E17: 10 | F17: 0.09449030718 | G17: 0.2545480132 | K17: Nov | L17: 0.03323622009 | M17: 0.8110240102 | N17: 0.03323609981 | O17: 0.09060999751
A18: Dec | B18: None | C18: 0.0742536623 | D18: 4.524258137 | E18: 10 | F18: 0.07460375586 | G18: 0.3954179883 | K18: Dec | L18: 0.06145237643 | M18: 1.870121002 | N18: 0.06145245185 | O18: 0.1525859982
K19: Annual | L19: =AVERAGE(L7:L18) -> 0.0638537235 | M19: =MAX(M7:M18) -> 37.15512848 | N19: =AVERAGE(N7:N18) -> 0.05130962724 | O19: =MAX(O7:O18) -> 0.6978179812
J21: =+A6 -> 2023 | K21: mg/Nm3 | L21: Monthly 1/2 hourly mean | M21: Monthly 1/2 hourly maximum | N21: Monthly daily mean | O21: Monthly daily maximum
J22: A2 | K22: Jan | L22: 0.04814190921 | M22: 2.243140936 | N22: 0.03964167982 | O22: 0.09220600128
K23: Feb | L23: 0.04599903203 | M23: 1.504812002 | N23: 0.04277246657 | O23: 0.1067780033
K24: Mar | L24: 0.05360855096 | M24: 2.616637945 | N24: 0.05452792564 | O24: 0.192629993
K25: Apr | L25: 0.06997031035 | M25: 1.988191962 | N25: 0.06997026627 | O25: 0.1915709972
K26: May | L26: 0.1151295419 | M26: 3.498342991 | N26: 0.1151329353 | O26: 0.3073360026
K27: Jun | L27: 0.1221119996 | M27: 14.73357677 | N27: 0.1143891808 | O27: 0.5421429873
K28: Jul | L28: 0.07461444211 | M28: 1.274132967 | N28: 0.07461441849 | O28: 0.1428429931
K29: Aug | L29: 0.06334596171 | M29: 3.525022984 | N29: 0.06334541966 | O29: 0.1639419943
K30: Sep | L30: 0.1233242142 | M30: 3.27305007 | N30: 0.1092505563 | O30: 0.4045110047
K31: Oct | L31: 0.09583080026 | M31: 2.286427021 | N31: 0.09416115813 | O31: 0.3052160144
K32: Nov | L32: 0.0793698334 | M32: 1.101222038 | N32: 0.07530781434 | O32: 0.2256859988
K33: Dec | L33: 0.04849724888 | M33: 3.658787966 | N33: 0.04821120704 | O33: 0.1061929986
K34: Annual | L34: =AVERAGE(L22:L33) -> 0.07832865372 | M34: =MAX(M22:M33) -> 14.73357677 | N34: =AVERAGE(N22:N33) -> 0.07511041903 | O34: =MAX(O22:O33) -> 0.5421429873
J36: =+A6 -> 2023 | K36: mg/Nm3 | L36: Monthly 1/2 hourly mean | M36: Monthly 1/2 hourly maximum | N36: Monthly daily mean | O36: Monthly daily maximum
J37: A3 | K37: Jan | L37: 0.1567068778 | M37: 3.166565895 | N37: 0.1567068386 | O37: 0.3305270076
K38: Feb | L38: 0.1340596083 | M38: 1.425183058 | N38: 0.1330052601 | O38: 0.2236050069
K39: Mar | L39: 0.1380109178 | M39: 5.536344051 | N39: 0.1447270856 | O39: 0.4229960144
K40: Apr | L40: 0.1804748779 | M40: 3.880852938 | N40: 0.1804748653 | O40: 0.6933739781
K41: May | L41: 0.2838327269 | M41: 3.998017073 | N41: 0.2872039663 | O41: 0.5952469707
K42: Jun | L42: 0.1921089593 | M42: 4.055933952 | N42: 0.1742847979 | O42: 0.2621679902
K43: Jul | L43: 0.1996717581 | M43: 3.221029043 | N43: 0.199671741 | O43: 0.3822239935
K44: Aug | L44: 0.2072804549 | M44: 5.061751842 | N44: 0.2072804206 | O44: 0.51661098
K45: Sep | L45: 0.1236994638 | M45: 8.59414196 | N45: 0.1236316072 | O45: 0.5630779862
K46: Oct | L46: 0.2057977979 | M46: 12.51160526 | N46: 0.1727010494 | O46: 0.4525490105
K47: Nov | L47: 0.1742944892 | M47: 1.550529957 | N47: 0.1749270074 | O47: 0.2545480132
A48: Comments : | K48: Dec | L48: 0.1128113616 | M48: 4.524258137 | N48: 0.1141476087 | O48: 0.3954179883
A49: An indicated ELV value of zero in the table above means that no ammonia limit is/was set in the permit. | K49: Annual | L49: =AVERAGE(L37:L48) -> 0.1757291078 | M49: =MAX(M37:M48) -> 12.51160526 | N49: =AVERAGE(N37:N48) -> 0.172396854 | O49: =MAX(O37:O48) -> 0.6933739781
J51: =+A6 -> 2023 | K51: mg/Nm3 | L51: Monthly 1/2 hourly mean | M51: Monthly 1/2 hourly maximum | N51: Monthly daily mean | O51: Monthly daily maximum
J52: A4 | K52: Jan
K53: Feb
K54: Mar
K55: Apr
K56: May
K57: Jun
K58: Jul
K59: Aug
K60: Sep
K61: Oct
K62: Nov
K63: Dec
K64: Annual | L64: =AVERAGE(L52:L63) ->  | M64: =MAX(M52:M63) -> 0 | N64: =AVERAGE(N52:N63) ->  | O64: =MAX(O52:O63) -> 0
J66: =+A6 -> 2023 | K66: mg/Nm3 | L66: Monthly 1/2 hourly mean | M66: Monthly 1/2 hourly maximum | N66: Monthly daily mean | O66: Monthly daily maximum
J67: A5 | K67: Jan
K68: Feb
K69: Mar
K70: Apr
K71: May
K72: Jun
K73: Jul
K74: Aug
K75: Sep
K76: Oct
K77: Nov
K78: Dec
K79: Annual | L79: =AVERAGE(L67:L78) ->  | M79: =MAX(M67:M78) -> 0 | N79: =AVERAGE(N67:N78) ->  | O79: =MAX(O67:O78) -> 0
